{"text_format":"3","workbook":"xlsx","n_sheets":6,"sheets":["Ataskaitų_sritis","Pardavimas","Pajamos","Išlaidos","Mokesčiai","Kategorijos"],"not_rendered":{"images":1,"defined_names":34},"read":"whole","date_system":"1900"}

{"sheet":"Ataskaitų_sritis","index":0,"n_rows":20,"n_cols":8,"rows_kept":20,"merged":[[0,2,0,4],[0,6,3,7],[5,1,5,7]]}
[null,"Pelno (nuostolio) ataskaita","[Mėnesis arba metai] pabaiga [mėnesis-diena-metai]"]
[null,"Įmonės pavadinimas","Nurodyta 000s"]
[null,"Dabartinė bendroji marža [L/J]",{"$f":"IFERROR(IF(Bendras_pelnas=0,\"-\",Bendras_pelnas/Bendrosios_pajamos_iš_pardavimo),\"-\")","v":"-"}]
[null,"Dabartinė pardavimo grąža [T/J]",{"$f":"IFERROR(IF(Grynasis_pelnas=0,\"-\",Grynasis_pelnas/Bendrosios_pajamos_iš_pardavimo),\"-\")","v":"-"}]
[]
[null,"Nekeiskite kategorijų šiame darbalapyje, nes neveiks formulės. Naudokite darbalapio Kategorija norėdami įtraukti kategorijas ir atnaujinti atitinkamus darbalapius su įrašais. Šis darbalapis bus atnaujintas automatiškai."]
[null,"Santrauka","Visas ankstesnis laikotarpis","Bendras biudžetas","Bendras ataskaitinis\nLaikotarpis","Bendra ataskaitinio laikotarpio pardavimo procentinė dalis","Bendras ankstesnio periodo procentinis pokytis ","Bendras biudžeto procentinis pokytis"]
[null,"Bendros pajamos iš pardavimo [J]",{"$f":"SUMIFS(PajamosIšPardavimo[Ankstesnis laikotarpis],PajamosIšPardavimo[Pajamų tipas],\"Pajamos iš pardavimo\")","v":0},{"$f":"SUMIFS(PajamosIšPardavimo[Biudžetas],PajamosIšPardavimo[Pajamų tipas],\"Pajamos iš pardavimo\")","v":0},{"$f":"SUMIFS(PajamosIšPardavimo[Ataskaitinis laikotarpis],PajamosIšPardavimo[Pajamų tipas],\"Pajamos iš pardavimo\")","v":0},{"$f":"SUMIFS(PajamosIšPardavimo[Ataskaitinio laikotarpio pardavimo procentinė dalis],PajamosIšPardavimo[Pajamų tipas],\"Pajamos iš pardavimo\")","v":{"v":0,"d":"0.00%"}},{"$f":"SUMIFS(PajamosIšPardavimo[[Ankstesnio periodo procentinis pokytis ]],PajamosIšPardavimo[Pajamų tipas],\"Pajamos iš pardavimo\")","v":{"v":0,"d":"0.00%"}},{"$f":"SUMIFS(PajamosIšPardavimo[Biudžeto procentinis pokytis],PajamosIšPardavimo[Pajamų tipas],\"Pajamos iš pardavimo\")","v":{"v":0,"d":"0.00%"}}]
[null,"Bendrosios pardavimo išlaidos [K]",{"$f":"SUMIFS(PajamosIšPardavimo[Ankstesnis laikotarpis],PajamosIšPardavimo[Pajamų tipas],\"Pardavimo išlaidos\")","v":0},{"$f":"SUMIFS(PajamosIšPardavimo[Biudžetas],PajamosIšPardavimo[Pajamų tipas],\"Pardavimo išlaidos\")","v":0},{"$f":"SUMIFS(PajamosIšPardavimo[Ataskaitinis laikotarpis],PajamosIšPardavimo[Pajamų tipas],\"Pardavimo išlaidos\")","v":0},{"$f":"SUMIFS(PajamosIšPardavimo[Ataskaitinio laikotarpio pardavimo procentinė dalis],PajamosIšPardavimo[Pajamų tipas],\"Pardavimo išlaidos\")","v":{"v":0,"d":"0.00%"}},{"$f":"SUMIFS(PajamosIšPardavimo[[Ankstesnio periodo procentinis pokytis ]],PajamosIšPardavimo[Pajamų tipas],\"Pardavimo išlaidos\")","v":{"v":0,"d":"0.00%"}},{"$f":"SUMIFS(PajamosIšPardavimo[Biudžeto procentinis pokytis],PajamosIšPardavimo[Pajamų tipas],\"Pardavimo išlaidos\")","v":{"v":0,"d":"0.00%"}}]
[null,"Bendrosios pardavimo ir rinkodaros išlaidos [M]",{"$f":"SUMIFS(VeiklosIšlaidos[Ankstesnis laikotarpis],VeiklosIšlaidos[Išlaidų tipas],\"Pardavimas ir rinkodara\")","v":0},{"$f":"SUMIFS(VeiklosIšlaidos[Biudžetas],VeiklosIšlaidos[Išlaidų tipas],\"Pardavimas ir rinkodara\")","v":0},{"$f":"SUMIFS(VeiklosIšlaidos[Ataskaitinis laikotarpis],VeiklosIšlaidos[Išlaidų tipas],\"Pardavimas ir rinkodara\")","v":0},{"$f":"SUMIFS(VeiklosIšlaidos[Ataskaitinio laikotarpio pardavimo procentinė dalis],VeiklosIšlaidos[Išlaidų tipas],\"Pardavimas ir rinkodara\")","v":{"v":0,"d":"0.00%"}},{"$f":"SUMIFS(VeiklosIšlaidos[[Ankstesnio periodo procentinis pokytis ]],VeiklosIšlaidos[Išlaidų tipas],\"Pardavimas ir rinkodara\")","v":{"v":0,"d":"0.00%"}},{"$f":"SUMIFS(VeiklosIšlaidos[Biudžeto procentinis pokytis],VeiklosIšlaidos[Išlaidų tipas],\"Pardavimas ir rinkodara\")","v":{"v":0,"d":"0.00%"}}]
[null,"Bendrosios tyrimų ir plėtros išlaidos [N]",{"$f":"SUMIFS(VeiklosIšlaidos[Ankstesnis laikotarpis],VeiklosIšlaidos[Išlaidų tipas],\"Tyrimai ir plėtra\")","v":0},{"$f":"SUMIFS(VeiklosIšlaidos[Biudžetas],VeiklosIšlaidos[Išlaidų tipas],\"Tyrimai ir plėtra\")","v":0},{"$f":"SUMIFS(VeiklosIšlaidos[Ataskaitinis laikotarpis],VeiklosIšlaidos[Išlaidų tipas],\"Tyrimai ir plėtra\")","v":0},{"$f":"SUMIFS(VeiklosIšlaidos[Ataskaitinio laikotarpio pardavimo procentinė dalis],VeiklosIšlaidos[Išlaidų tipas],\"Tyrimai ir plėtra\")","v":{"v":0,"d":"0.00%"}},{"$f":"SUMIFS(VeiklosIšlaidos[[Ankstesnio periodo procentinis pokytis ]],VeiklosIšlaidos[Išlaidų tipas],\"Tyrimai ir plėtra\")","v":{"v":0,"d":"0.00%"}},{"$f":"SUMIFS(VeiklosIšlaidos[Biudžeto procentinis pokytis],VeiklosIšlaidos[Išlaidų tipas],\"Tyrimai ir plėtra\")","v":{"v":0,"d":"0.00%"}}]
[null,"Bendrosios ir administravimo išlaidos [O]",{"$f":"SUMIFS(VeiklosIšlaidos[Ankstesnis laikotarpis],VeiklosIšlaidos[Išlaidų tipas],\"Bendrosios ir administravimo\")","v":0},{"$f":"SUMIFS(VeiklosIšlaidos[Biudžetas],VeiklosIšlaidos[Išlaidų tipas],\"Bendrosios ir administravimo\")","v":0},{"$f":"SUMIFS(VeiklosIšlaidos[Ataskaitinis laikotarpis],VeiklosIšlaidos[Išlaidų tipas],\"Bendrosios ir administravimo\")","v":0},{"$f":"SUMIFS(VeiklosIšlaidos[Ataskaitinio laikotarpio pardavimo procentinė dalis],VeiklosIšlaidos[Išlaidų tipas],\"Bendrosios ir administravimo\")","v":{"v":0,"d":"0.00%"}},{"$f":"SUMIFS(VeiklosIšlaidos[[Ankstesnio periodo procentinis pokytis ]],VeiklosIšlaidos[Išlaidų tipas],\"Bendrosios ir administravimo\")","v":{"v":0,"d":"0.00%"}},{"$f":"SUMIFS(VeiklosIšlaidos[Biudžeto procentinis pokytis],VeiklosIšlaidos[Išlaidų tipas],\"Bendrosios ir administravimo\")","v":{"v":0,"d":"0.00%"}}]
[null,"Bendrosios kitos veiklos išlaidos [P]",{"$f":"VeiklosIšlaidos[[#Totals],[Ankstesnis laikotarpis]]-SUM(C10:C12)","v":0},{"$f":"VeiklosIšlaidos[[#Totals],[Biudžetas]]-SUM(D10:D12)","v":0},{"$f":"VeiklosIšlaidos[[#Totals],[Ataskaitinis laikotarpis]]-SUM(E10:E12)","v":0},{"$f":"VeiklosIšlaidos[[#Totals],[Ataskaitinio laikotarpio pardavimo procentinė dalis]]-SUM(F10:F12)","v":{"v":0,"d":"0.00%"}},{"$f":"VeiklosIšlaidos[[#Totals],[Ankstesnio periodo procentinis pokytis ]]-SUM(G10:G12)","v":{"v":0,"d":"0.00%"}},{"$f":"VeiklosIšlaidos[[#Totals],[Biudžeto procentinis pokytis]]-SUM(H10:H12)","v":{"v":0,"d":"0.00%"}}]
[null,"Kitos pajamos [S]",{"$f":"Pajamos[[#Totals],[Ankstesnis laikotarpis]]","v":0},{"$f":"Pajamos[[#Totals],[Biudžetas]]","v":0},{"$f":"Pajamos[[#Totals],[Ataskaitinis laikotarpis]]","v":0},{"$f":"Pajamos[[#Totals],[Ataskaitinio laikotarpio pardavimo procentinė dalis]]","v":{"v":0,"d":"0.00%"}},{"$f":"Pajamos[[#Totals],[Ankstesnio periodo procentinis pokytis ]]","v":{"v":0,"d":"0.00%"}},{"$f":"Pajamos[[#Totals],[Biudžeto procentinis pokytis]]","v":{"v":0,"d":"0.00%"}}]
[null,"Bendra mokesčių suma [T]",{"$f":"Mokesčiai[[#Totals],[Ankstesnis laikotarpis]]","v":0},{"$f":"Mokesčiai[[#Totals],[Biudžetas]]","v":0},{"$f":"Mokesčiai[[#Totals],[Ataskaitinis laikotarpis]]","v":0},{"$f":"Mokesčiai[[#Totals],[Ataskaitinio laikotarpio pardavimo procentinė dalis]]","v":{"v":0,"d":"0.00%"}},{"$f":"Mokesčiai[[#Totals],[Ankstesnio periodo procentinis pokytis ]]","v":{"v":0,"d":"0.00%"}},{"$f":"Mokesčiai[[#Totals],[Biudžeto procentinis pokytis]]","v":{"v":0,"d":"0.00%"}}]
[]
[null,"Bendrasis pelnas [L=J-K]",{"$f":"IFERROR(C8-C9,\"-\")","v":0},{"$f":"IFERROR(D8-D9,\"-\")","v":0},{"$f":"IFERROR(Bendrosios_pajamos_iš_pardavimo-Bendrosios_išlaidos_pardavimas,\"-\")","v":0},{"$f":"IFERROR(IF(Bendrosios_pajamos_iš_pardavimo=0,\"0.00%\",Bendras_pelnas/Bendrosios_pajamos_iš_pardavimo),\"-\")","v":"0.00%"},{"$f":"IFERROR(IF(C17=Bendras_pelnas,0,IF(Bendras_pelnas>C17,ABS((Bendras_pelnas/C17)-1),IF(AND(Bendras_pelnas<C17,C17<0),-((Bendras_pelnas/C17)-1),(Bendras_pelnas/C17)-1))),\"-\")","v":{"v":0,"d":"0.00%"}},{"$f":"IFERROR(IF(D17=Bendras_pelnas,0,IF(Bendras_pelnas>D17,ABS((Bendras_pelnas/D17)-1),IF(AND(Bendras_pelnas<D17,D17<0),-((Bendras_pelnas/D17)-1),(Bendras_pelnas/D17)-1))),\"-\")","v":{"v":0,"d":"0.00%"}}]
[null,"Bendrosios veiklos išlaidos [Q=M+N+O+P]",{"$f":"IFERROR(C10+C11+C12+C13,\"-\")","v":0},{"$f":"IFERROR(D10+D11+D12+D13,\"-\")","v":0},{"$f":"IFERROR(Bendrasis_pardavimas_ir_rinkodara+Bendrieji_tyrimai_ir_plėtra+Bendrosios_administravimo+Bendrosios_kitos_išlaidos,\"-\")","v":0},{"$f":"IFERROR(IF(Bendrosios_pajamos_iš_pardavimo=0,\"0.00%\",Bendrosios_veiklos_išlaidos/Bendrosios_pajamos_iš_pardavimo),\"-\")","v":"0.00%"},{"$f":"IFERROR(IF(C18=Bendrosios_veiklos_išlaidos,0,IF(Bendrosios_veiklos_išlaidos>C18,ABS((Bendrosios_veiklos_išlaidos/C18)-1),IF(AND(Bendrosios_veiklos_išlaidos<C18,C18<0),-((Bendrosios_veiklos_išlaidos/C18)-1),(Bendrosios_veiklos_išlaidos/C18)-1))),\"-\")","v":{"v":0,"d":"0.00%"}},{"$f":"IFERROR(IF(D18=Bendrosios_veiklos_išlaidos,0,IF(Bendrosios_veiklos_išlaidos>D18,ABS((Bendrosios_veiklos_išlaidos/D18)-1),IF(AND(Bendrosios_veiklos_išlaidos<D18,D18<0),-((Bendrosios_veiklos_išlaidos/D18)-1),(Bendrosios_veiklos_išlaidos/D18)-1))),\"-\")","v":{"v":0,"d":"0.00%"}}]
[null,"Pajamos iš veiklos [R=L-Q]",{"$f":"IFERROR(C17-C18,\"-\")","v":0},{"$f":"IFERROR(D17-D18,\"-\")","v":0},{"$f":"IFERROR(Bendras_pelnas-Bendrosios_veiklos_išlaidos,\"-\")","v":0},{"$f":"IFERROR(IF(Bendrosios_pajamos_iš_pardavimo=0,\"0.00%\",Bendrosios_pajamos_iš_veiklos/Bendrosios_pajamos_iš_pardavimo),\"-\")","v":"0.00%"},{"$f":"IFERROR(IF(C19=Bendrosios_pajamos_iš_veiklos,0,IF(Bendrosios_pajamos_iš_veiklos>C19,ABS((Bendrosios_pajamos_iš_veiklos/C19)-1),IF(AND(Bendrosios_pajamos_iš_veiklos<C19,C19<0),-((Bendrosios_pajamos_iš_veiklos/C19)-1),(Bendrosios_pajamos_iš_veiklos/C19)-1))),\"-\")","v":{"v":0,"d":"0.00%"}},{"$f":"IFERROR(IF(D19=Bendrosios_pajamos_iš_veiklos,0,IF(Bendrosios_pajamos_iš_veiklos>D19,ABS((Bendrosios_pajamos_iš_veiklos/D19)-1),IF(AND(Bendrosios_pajamos_iš_veiklos<D19,D19<0),-((Bendrosios_pajamos_iš_veiklos/D19)-1),(Bendrosios_pajamos_iš_veiklos/D19)-1))),\"-\")","v":{"v":0,"d":"0.00%"}}]
[null,"Grynasis pelnas [U=R+S-T]",{"$f":"IFERROR(C19+C14-C15,\"-\")","v":0},{"$f":"IFERROR(D19+D14-D15,\"-\")","v":0},{"$f":"Bendrosios_pajamos_iš_veiklos+Bendrosios_kitos_pajamos-Bendrieji_mokesčiai","v":0},{"$f":"IFERROR(IF(Bendrosios_pajamos_iš_pardavimo=0,\"0.00%\",Grynasis_pelnas/Bendrosios_pajamos_iš_pardavimo),\"-\")","v":"0.00%"},{"$f":"IFERROR(IF(C20=Grynasis_pelnas,0,IF(Grynasis_pelnas>C20,ABS((Grynasis_pelnas/C20)-1),IF(AND(Grynasis_pelnas<C20,C20<0),-((Grynasis_pelnas/C20)-1),(Grynasis_pelnas/C20)-1))),\"-\")","v":{"v":0,"d":"0.00%"}},{"$f":"IFERROR(IF(D20=Grynasis_pelnas,0,IF(Grynasis_pelnas>D20,ABS((Grynasis_pelnas/D20)-1),IF(AND(Grynasis_pelnas<D20,D20<0),-((Grynasis_pelnas/D20)-1),(Grynasis_pelnas/D20)-1))),\"-\")","v":{"v":0,"d":"0.00%"}}]

{"sheet":"Pardavimas","index":1,"n_rows":13,"n_cols":9,"rows_kept":13,"merged":[[0,7,2,8]]}
[null,{"$f":"Darbaknygės_pavadinimas","v":"Pelno (nuostolio) ataskaita"}]
[null,{"$f":"Įmonės_pavadinimas","v":"Įmonės pavadinimas"},"Nurodyta 000s"]
[null,"Pajamos iš pardavimo",{"$f":"IFERROR(Pardavimas_pajamos,\"-\")","v":0}]
[null,"Pajamų tipas","Aprašas","Ankstesnis laikotarpis","Biudžetas","Ataskaitinis laikotarpis","Ataskaitinio laikotarpio pardavimo procentinė dalis","Ankstesnio periodo procentinis pokytis ","Biudžeto procentinis pokytis"]
[null,"Pajamos iš pardavimo","Produktas / 1 paslauga",{"$nulls":3},{"$f":"IFERROR(IF(PajamosIšPardavimo[[#Totals],[Ataskaitinis laikotarpis]]=0,\"-\",PajamosIšPardavimo[[#This Row],[Ataskaitinis laikotarpis]]/Pardavimas_pajamos),\"-\")","v":"-"},{"$f":"IFERROR(IF(PajamosIšPardavimo[[#This Row],[Ankstesnis laikotarpis]]=PajamosIšPardavimo[[#This Row],[Ataskaitinis laikotarpis]],0,IF(PajamosIšPardavimo[[#This Row],[Ataskaitinis laikotarpis]]>PajamosIšPardavimo[[#This Row],[Ankstesnis laikotarpis]],ABS((PajamosIšPardavimo[[#This Row],[Ataskaitinis laikotarpis]]/PajamosIšPardavimo[[#This Row],[Ankstesnis laikotarpis]])-1),IF(AND(PajamosIšPardavimo[[#This Row],[Ataskaitinis laikotarpis]]<PajamosIšPardavimo[[#This Row],[Ankstesnis laikotarpis]],PajamosIšPardavimo[[#This Row],[Ankstesnis laikotarpis]]<0),-((PajamosIšPardavimo[[#This Row],[Ataskaitinis laikotarpis]]/PajamosIšPardavimo[[#This Row],[Ankstesnis laikotarpis]])-1),(PajamosIšPardavimo[[#This Row],[Ataskaitinis laikotarpis]]/PajamosIšPardavimo[[#This Row],[Ankstesnis laikotarpis]])-1))),\"-\")","v":{"v":0,"d":"0.00%"}},{"$f":"IFERROR(IF(PajamosIšPardavimo[[#This Row],[Biudžetas]]=PajamosIšPardavimo[[#This Row],[Ataskaitinis laikotarpis]],0,IF(PajamosIšPardavimo[[#This Row],[Ataskaitinis laikotarpis]]>PajamosIšPardavimo[[#This Row],[Biudžetas]],ABS((PajamosIšPardavimo[[#This Row],[Ataskaitinis laikotarpis]]/PajamosIšPardavimo[[#This Row],[Biudžetas]])-1),IF(AND(PajamosIšPardavimo[[#This Row],[Ataskaitinis laikotarpis]]<PajamosIšPardavimo[[#This Row],[Biudžetas]],PajamosIšPardavimo[[#This Row],[Biudžetas]]<0),-((PajamosIšPardavimo[[#This Row],[Ataskaitinis laikotarpis]]/PajamosIšPardavimo[[#This Row],[Biudžetas]])-1),(PajamosIšPardavimo[[#This Row],[Ataskaitinis laikotarpis]]/PajamosIšPardavimo[[#This Row],[Biudžetas]])-1))),\"-\")","v":{"v":0,"d":"0.00%"}}]
[null,"Pajamos iš pardavimo","Produktas / 2 paslauga",{"$nulls":3},{"$f":"IFERROR(IF(PajamosIšPardavimo[[#Totals],[Ataskaitinis laikotarpis]]=0,\"-\",PajamosIšPardavimo[[#This Row],[Ataskaitinis laikotarpis]]/Pardavimas_pajamos),\"-\")","v":"-"},{"$f":"IFERROR(IF(PajamosIšPardavimo[[#This Row],[Ankstesnis laikotarpis]]=PajamosIšPardavimo[[#This Row],[Ataskaitinis laikotarpis]],0,IF(PajamosIšPardavimo[[#This Row],[Ataskaitinis laikotarpis]]>PajamosIšPardavimo[[#This Row],[Ankstesnis laikotarpis]],ABS((PajamosIšPardavimo[[#This Row],[Ataskaitinis laikotarpis]]/PajamosIšPardavimo[[#This Row],[Ankstesnis laikotarpis]])-1),IF(AND(PajamosIšPardavimo[[#This Row],[Ataskaitinis laikotarpis]]<PajamosIšPardavimo[[#This Row],[Ankstesnis laikotarpis]],PajamosIšPardavimo[[#This Row],[Ankstesnis laikotarpis]]<0),-((PajamosIšPardavimo[[#This Row],[Ataskaitinis laikotarpis]]/PajamosIšPardavimo[[#This Row],[Ankstesnis laikotarpis]])-1),(PajamosIšPardavimo[[#This Row],[Ataskaitinis laikotarpis]]/PajamosIšPardavimo[[#This Row],[Ankstesnis laikotarpis]])-1))),\"-\")","v":{"v":0,"d":"0.00%"}},{"$f":"IFERROR(IF(PajamosIšPardavimo[[#This Row],[Biudžetas]]=PajamosIšPardavimo[[#This Row],[Ataskaitinis laikotarpis]],0,IF(PajamosIšPardavimo[[#This Row],[Ataskaitinis laikotarpis]]>PajamosIšPardavimo[[#This Row],[Biudžetas]],ABS((PajamosIšPardavimo[[#This Row],[Ataskaitinis laikotarpis]]/PajamosIšPardavimo[[#This Row],[Biudžetas]])-1),IF(AND(PajamosIšPardavimo[[#This Row],[Ataskaitinis laikotarpis]]<PajamosIšPardavimo[[#This Row],[Biudžetas]],PajamosIšPardavimo[[#This Row],[Biudžetas]]<0),-((PajamosIšPardavimo[[#This Row],[Ataskaitinis laikotarpis]]/PajamosIšPardavimo[[#This Row],[Biudžetas]])-1),(PajamosIšPardavimo[[#This Row],[Ataskaitinis laikotarpis]]/PajamosIšPardavimo[[#This Row],[Biudžetas]])-1))),\"-\")","v":{"v":0,"d":"0.00%"}}]
[null,"Pajamos iš pardavimo","Produktas / 3 paslauga",{"$nulls":3},{"$f":"IFERROR(IF(PajamosIšPardavimo[[#Totals],[Ataskaitinis laikotarpis]]=0,\"-\",PajamosIšPardavimo[[#This Row],[Ataskaitinis laikotarpis]]/Pardavimas_pajamos),\"-\")","v":"-"},{"$f":"IFERROR(IF(PajamosIšPardavimo[[#This Row],[Ankstesnis laikotarpis]]=PajamosIšPardavimo[[#This Row],[Ataskaitinis laikotarpis]],0,IF(PajamosIšPardavimo[[#This Row],[Ataskaitinis laikotarpis]]>PajamosIšPardavimo[[#This Row],[Ankstesnis laikotarpis]],ABS((PajamosIšPardavimo[[#This Row],[Ataskaitinis laikotarpis]]/PajamosIšPardavimo[[#This Row],[Ankstesnis laikotarpis]])-1),IF(AND(PajamosIšPardavimo[[#This Row],[Ataskaitinis laikotarpis]]<PajamosIšPardavimo[[#This Row],[Ankstesnis laikotarpis]],PajamosIšPardavimo[[#This Row],[Ankstesnis laikotarpis]]<0),-((PajamosIšPardavimo[[#This Row],[Ataskaitinis laikotarpis]]/PajamosIšPardavimo[[#This Row],[Ankstesnis laikotarpis]])-1),(PajamosIšPardavimo[[#This Row],[Ataskaitinis laikotarpis]]/PajamosIšPardavimo[[#This Row],[Ankstesnis laikotarpis]])-1))),\"-\")","v":{"v":0,"d":"0.00%"}},{"$f":"IFERROR(IF(PajamosIšPardavimo[[#This Row],[Biudžetas]]=PajamosIšPardavimo[[#This Row],[Ataskaitinis laikotarpis]],0,IF(PajamosIšPardavimo[[#This Row],[Ataskaitinis laikotarpis]]>PajamosIšPardavimo[[#This Row],[Biudžetas]],ABS((PajamosIšPardavimo[[#This Row],[Ataskaitinis laikotarpis]]/PajamosIšPardavimo[[#This Row],[Biudžetas]])-1),IF(AND(PajamosIšPardavimo[[#This Row],[Ataskaitinis laikotarpis]]<PajamosIšPardavimo[[#This Row],[Biudžetas]],PajamosIšPardavimo[[#This Row],[Biudžetas]]<0),-((PajamosIšPardavimo[[#This Row],[Ataskaitinis laikotarpis]]/PajamosIšPardavimo[[#This Row],[Biudžetas]])-1),(PajamosIšPardavimo[[#This Row],[Ataskaitinis laikotarpis]]/PajamosIšPardavimo[[#This Row],[Biudžetas]])-1))),\"-\")","v":{"v":0,"d":"0.00%"}}]
[null,"Pajamos iš pardavimo","Produktas / 4 paslauga",{"$nulls":3},{"$f":"IFERROR(IF(PajamosIšPardavimo[[#Totals],[Ataskaitinis laikotarpis]]=0,\"-\",PajamosIšPardavimo[[#This Row],[Ataskaitinis laikotarpis]]/Pardavimas_pajamos),\"-\")","v":"-"},{"$f":"IFERROR(IF(PajamosIšPardavimo[[#This Row],[Ankstesnis laikotarpis]]=PajamosIšPardavimo[[#This Row],[Ataskaitinis laikotarpis]],0,IF(PajamosIšPardavimo[[#This Row],[Ataskaitinis laikotarpis]]>PajamosIšPardavimo[[#This Row],[Ankstesnis laikotarpis]],ABS((PajamosIšPardavimo[[#This Row],[Ataskaitinis laikotarpis]]/PajamosIšPardavimo[[#This Row],[Ankstesnis laikotarpis]])-1),IF(AND(PajamosIšPardavimo[[#This Row],[Ataskaitinis laikotarpis]]<PajamosIšPardavimo[[#This Row],[Ankstesnis laikotarpis]],PajamosIšPardavimo[[#This Row],[Ankstesnis laikotarpis]]<0),-((PajamosIšPardavimo[[#This Row],[Ataskaitinis laikotarpis]]/PajamosIšPardavimo[[#This Row],[Ankstesnis laikotarpis]])-1),(PajamosIšPardavimo[[#This Row],[Ataskaitinis laikotarpis]]/PajamosIšPardavimo[[#This Row],[Ankstesnis laikotarpis]])-1))),\"-\")","v":{"v":0,"d":"0.00%"}},{"$f":"IFERROR(IF(PajamosIšPardavimo[[#This Row],[Biudžetas]]=PajamosIšPardavimo[[#This Row],[Ataskaitinis laikotarpis]],0,IF(PajamosIšPardavimo[[#This Row],[Ataskaitinis laikotarpis]]>PajamosIšPardavimo[[#This Row],[Biudžetas]],ABS((PajamosIšPardavimo[[#This Row],[Ataskaitinis laikotarpis]]/PajamosIšPardavimo[[#This Row],[Biudžetas]])-1),IF(AND(PajamosIšPardavimo[[#This Row],[Ataskaitinis laikotarpis]]<PajamosIšPardavimo[[#This Row],[Biudžetas]],PajamosIšPardavimo[[#This Row],[Biudžetas]]<0),-((PajamosIšPardavimo[[#This Row],[Ataskaitinis laikotarpis]]/PajamosIšPardavimo[[#This Row],[Biudžetas]])-1),(PajamosIšPardavimo[[#This Row],[Ataskaitinis laikotarpis]]/PajamosIšPardavimo[[#This Row],[Biudžetas]])-1))),\"-\")","v":{"v":0,"d":"0.00%"}}]
[null,"Pardavimo išlaidos","Produktas / 1 paslauga",{"$nulls":3},{"$f":"IFERROR(IF(PajamosIšPardavimo[[#Totals],[Ataskaitinis laikotarpis]]=0,\"-\",PajamosIšPardavimo[[#This Row],[Ataskaitinis laikotarpis]]/Pardavimas_pajamos),\"-\")","v":"-"},{"$f":"IFERROR(IF(PajamosIšPardavimo[[#This Row],[Ankstesnis laikotarpis]]=PajamosIšPardavimo[[#This Row],[Ataskaitinis laikotarpis]],0,IF(PajamosIšPardavimo[[#This Row],[Ataskaitinis laikotarpis]]>PajamosIšPardavimo[[#This Row],[Ankstesnis laikotarpis]],ABS((PajamosIšPardavimo[[#This Row],[Ataskaitinis laikotarpis]]/PajamosIšPardavimo[[#This Row],[Ankstesnis laikotarpis]])-1),IF(AND(PajamosIšPardavimo[[#This Row],[Ataskaitinis laikotarpis]]<PajamosIšPardavimo[[#This Row],[Ankstesnis laikotarpis]],PajamosIšPardavimo[[#This Row],[Ankstesnis laikotarpis]]<0),-((PajamosIšPardavimo[[#This Row],[Ataskaitinis laikotarpis]]/PajamosIšPardavimo[[#This Row],[Ankstesnis laikotarpis]])-1),(PajamosIšPardavimo[[#This Row],[Ataskaitinis laikotarpis]]/PajamosIšPardavimo[[#This Row],[Ankstesnis laikotarpis]])-1))),\"-\")","v":{"v":0,"d":"0.00%"}},{"$f":"IFERROR(IF(PajamosIšPardavimo[[#This Row],[Biudžetas]]=PajamosIšPardavimo[[#This Row],[Ataskaitinis laikotarpis]],0,IF(PajamosIšPardavimo[[#This Row],[Ataskaitinis laikotarpis]]>PajamosIšPardavimo[[#This Row],[Biudžetas]],ABS((PajamosIšPardavimo[[#This Row],[Ataskaitinis laikotarpis]]/PajamosIšPardavimo[[#This Row],[Biudžetas]])-1),IF(AND(PajamosIšPardavimo[[#This Row],[Ataskaitinis laikotarpis]]<PajamosIšPardavimo[[#This Row],[Biudžetas]],PajamosIšPardavimo[[#This Row],[Biudžetas]]<0),-((PajamosIšPardavimo[[#This Row],[Ataskaitinis laikotarpis]]/PajamosIšPardavimo[[#This Row],[Biudžetas]])-1),(PajamosIšPardavimo[[#This Row],[Ataskaitinis laikotarpis]]/PajamosIšPardavimo[[#This Row],[Biudžetas]])-1))),\"-\")","v":{"v":0,"d":"0.00%"}}]
[null,"Pardavimo išlaidos","Produktas / 2 paslauga",{"$nulls":3},{"$f":"IFERROR(IF(PajamosIšPardavimo[[#Totals],[Ataskaitinis laikotarpis]]=0,\"-\",PajamosIšPardavimo[[#This Row],[Ataskaitinis laikotarpis]]/Pardavimas_pajamos),\"-\")","v":"-"},{"$f":"IFERROR(IF(PajamosIšPardavimo[[#This Row],[Ankstesnis laikotarpis]]=PajamosIšPardavimo[[#This Row],[Ataskaitinis laikotarpis]],0,IF(PajamosIšPardavimo[[#This Row],[Ataskaitinis laikotarpis]]>PajamosIšPardavimo[[#This Row],[Ankstesnis laikotarpis]],ABS((PajamosIšPardavimo[[#This Row],[Ataskaitinis laikotarpis]]/PajamosIšPardavimo[[#This Row],[Ankstesnis laikotarpis]])-1),IF(AND(PajamosIšPardavimo[[#This Row],[Ataskaitinis laikotarpis]]<PajamosIšPardavimo[[#This Row],[Ankstesnis laikotarpis]],PajamosIšPardavimo[[#This Row],[Ankstesnis laikotarpis]]<0),-((PajamosIšPardavimo[[#This Row],[Ataskaitinis laikotarpis]]/PajamosIšPardavimo[[#This Row],[Ankstesnis laikotarpis]])-1),(PajamosIšPardavimo[[#This Row],[Ataskaitinis laikotarpis]]/PajamosIšPardavimo[[#This Row],[Ankstesnis laikotarpis]])-1))),\"-\")","v":{"v":0,"d":"0.00%"}},{"$f":"IFERROR(IF(PajamosIšPardavimo[[#This Row],[Biudžetas]]=PajamosIšPardavimo[[#This Row],[Ataskaitinis laikotarpis]],0,IF(PajamosIšPardavimo[[#This Row],[Ataskaitinis laikotarpis]]>PajamosIšPardavimo[[#This Row],[Biudžetas]],ABS((PajamosIšPardavimo[[#This Row],[Ataskaitinis laikotarpis]]/PajamosIšPardavimo[[#This Row],[Biudžetas]])-1),IF(AND(PajamosIšPardavimo[[#This Row],[Ataskaitinis laikotarpis]]<PajamosIšPardavimo[[#This Row],[Biudžetas]],PajamosIšPardavimo[[#This Row],[Biudžetas]]<0),-((PajamosIšPardavimo[[#This Row],[Ataskaitinis laikotarpis]]/PajamosIšPardavimo[[#This Row],[Biudžetas]])-1),(PajamosIšPardavimo[[#This Row],[Ataskaitinis laikotarpis]]/PajamosIšPardavimo[[#This Row],[Biudžetas]])-1))),\"-\")","v":{"v":0,"d":"0.00%"}}]
[null,"Pardavimo išlaidos","Produktas / 3 paslauga",{"$nulls":3},{"$f":"IFERROR(IF(PajamosIšPardavimo[[#Totals],[Ataskaitinis laikotarpis]]=0,\"-\",PajamosIšPardavimo[[#This Row],[Ataskaitinis laikotarpis]]/Pardavimas_pajamos),\"-\")","v":"-"},{"$f":"IFERROR(IF(PajamosIšPardavimo[[#This Row],[Ankstesnis laikotarpis]]=PajamosIšPardavimo[[#This Row],[Ataskaitinis laikotarpis]],0,IF(PajamosIšPardavimo[[#This Row],[Ataskaitinis laikotarpis]]>PajamosIšPardavimo[[#This Row],[Ankstesnis laikotarpis]],ABS((PajamosIšPardavimo[[#This Row],[Ataskaitinis laikotarpis]]/PajamosIšPardavimo[[#This Row],[Ankstesnis laikotarpis]])-1),IF(AND(PajamosIšPardavimo[[#This Row],[Ataskaitinis laikotarpis]]<PajamosIšPardavimo[[#This Row],[Ankstesnis laikotarpis]],PajamosIšPardavimo[[#This Row],[Ankstesnis laikotarpis]]<0),-((PajamosIšPardavimo[[#This Row],[Ataskaitinis laikotarpis]]/PajamosIšPardavimo[[#This Row],[Ankstesnis laikotarpis]])-1),(PajamosIšPardavimo[[#This Row],[Ataskaitinis laikotarpis]]/PajamosIšPardavimo[[#This Row],[Ankstesnis laikotarpis]])-1))),\"-\")","v":{"v":0,"d":"0.00%"}},{"$f":"IFERROR(IF(PajamosIšPardavimo[[#This Row],[Biudžetas]]=PajamosIšPardavimo[[#This Row],[Ataskaitinis laikotarpis]],0,IF(PajamosIšPardavimo[[#This Row],[Ataskaitinis laikotarpis]]>PajamosIšPardavimo[[#This Row],[Biudžetas]],ABS((PajamosIšPardavimo[[#This Row],[Ataskaitinis laikotarpis]]/PajamosIšPardavimo[[#This Row],[Biudžetas]])-1),IF(AND(PajamosIšPardavimo[[#This Row],[Ataskaitinis laikotarpis]]<PajamosIšPardavimo[[#This Row],[Biudžetas]],PajamosIšPardavimo[[#This Row],[Biudžetas]]<0),-((PajamosIšPardavimo[[#This Row],[Ataskaitinis laikotarpis]]/PajamosIšPardavimo[[#This Row],[Biudžetas]])-1),(PajamosIšPardavimo[[#This Row],[Ataskaitinis laikotarpis]]/PajamosIšPardavimo[[#This Row],[Biudžetas]])-1))),\"-\")","v":{"v":0,"d":"0.00%"}}]
[null,"Pardavimo išlaidos","Produktas / 4 paslauga",{"$nulls":3},{"$f":"IFERROR(IF(PajamosIšPardavimo[[#Totals],[Ataskaitinis laikotarpis]]=0,\"-\",PajamosIšPardavimo[[#This Row],[Ataskaitinis laikotarpis]]/Pardavimas_pajamos),\"-\")","v":"-"},{"$f":"IFERROR(IF(PajamosIšPardavimo[[#This Row],[Ankstesnis laikotarpis]]=PajamosIšPardavimo[[#This Row],[Ataskaitinis laikotarpis]],0,IF(PajamosIšPardavimo[[#This Row],[Ataskaitinis laikotarpis]]>PajamosIšPardavimo[[#This Row],[Ankstesnis laikotarpis]],ABS((PajamosIšPardavimo[[#This Row],[Ataskaitinis laikotarpis]]/PajamosIšPardavimo[[#This Row],[Ankstesnis laikotarpis]])-1),IF(AND(PajamosIšPardavimo[[#This Row],[Ataskaitinis laikotarpis]]<PajamosIšPardavimo[[#This Row],[Ankstesnis laikotarpis]],PajamosIšPardavimo[[#This Row],[Ankstesnis laikotarpis]]<0),-((PajamosIšPardavimo[[#This Row],[Ataskaitinis laikotarpis]]/PajamosIšPardavimo[[#This Row],[Ankstesnis laikotarpis]])-1),(PajamosIšPardavimo[[#This Row],[Ataskaitinis laikotarpis]]/PajamosIšPardavimo[[#This Row],[Ankstesnis laikotarpis]])-1))),\"-\")","v":{"v":0,"d":"0.00%"}},{"$f":"IFERROR(IF(PajamosIšPardavimo[[#This Row],[Biudžetas]]=PajamosIšPardavimo[[#This Row],[Ataskaitinis laikotarpis]],0,IF(PajamosIšPardavimo[[#This Row],[Ataskaitinis laikotarpis]]>PajamosIšPardavimo[[#This Row],[Biudžetas]],ABS((PajamosIšPardavimo[[#This Row],[Ataskaitinis laikotarpis]]/PajamosIšPardavimo[[#This Row],[Biudžetas]])-1),IF(AND(PajamosIšPardavimo[[#This Row],[Ataskaitinis laikotarpis]]<PajamosIšPardavimo[[#This Row],[Biudžetas]],PajamosIšPardavimo[[#This Row],[Biudžetas]]<0),-((PajamosIšPardavimo[[#This Row],[Ataskaitinis laikotarpis]]/PajamosIšPardavimo[[#This Row],[Biudžetas]])-1),(PajamosIšPardavimo[[#This Row],[Ataskaitinis laikotarpis]]/PajamosIšPardavimo[[#This Row],[Biudžetas]])-1))),\"-\")","v":{"v":0,"d":"0.00%"}}]
[null,"Bendrosios pajamos iš pardavimo",null,{"$f":"SUBTOTAL(109,PajamosIšPardavimo[Ankstesnis laikotarpis])","v":0},{"$f":"SUBTOTAL(109,PajamosIšPardavimo[Biudžetas])","v":0},{"$f":"SUBTOTAL(109,PajamosIšPardavimo[Ataskaitinis laikotarpis])","v":0},{"$f":"SUBTOTAL(109,PajamosIšPardavimo[Ataskaitinio laikotarpio pardavimo procentinė dalis])","v":{"v":0,"d":"0.00%"}},{"$f":"SUBTOTAL(109,PajamosIšPardavimo[[Ankstesnio periodo procentinis pokytis ]])","v":{"v":0,"d":"0.00%"}},{"$f":"SUBTOTAL(109,PajamosIšPardavimo[Biudžeto procentinis pokytis])","v":{"v":0,"d":"0.00%"}}]

{"sheet":"Pajamos","index":2,"n_rows":7,"n_cols":9,"rows_kept":7,"merged":[[0,7,2,8]]}
[null,{"$f":"Darbaknygės_pavadinimas","v":"Pelno (nuostolio) ataskaita"}]
[null,{"$f":"Įmonės_pavadinimas","v":"Įmonės pavadinimas"},"Nurodyta 000s"]
[null,"Pajamos",{"$f":"IFERROR(Pajamos[[#Totals],[Ataskaitinis laikotarpis]],\"-\")","v":0}]
[null,"Pajamų tipas","Aprašas","Ankstesnis laikotarpis","Biudžetas","Ataskaitinis laikotarpis","Ataskaitinio laikotarpio pardavimo procentinė dalis","Ankstesnio periodo procentinis pokytis ","Biudžeto procentinis pokytis"]
[null,"Pajamos","Kitos pajamos",{"$nulls":3},{"$f":"IFERROR(IF(Pardavimas_pajamos=0,\"-\",Pajamos[[#This Row],[Ataskaitinis laikotarpis]]/Pardavimas_pajamos),\"-\")","v":"-"},{"$f":"IFERROR(IF(Pajamos[[#This Row],[Ankstesnis laikotarpis]]=Pajamos[[#This Row],[Ataskaitinis laikotarpis]],0,IF(Pajamos[[#This Row],[Ataskaitinis laikotarpis]]>Pajamos[[#This Row],[Ankstesnis laikotarpis]],ABS((Pajamos[[#This Row],[Ataskaitinis laikotarpis]]/Pajamos[[#This Row],[Ankstesnis laikotarpis]])-1),IF(AND(Pajamos[[#This Row],[Ataskaitinis laikotarpis]]<Pajamos[[#This Row],[Ankstesnis laikotarpis]],Pajamos[[#This Row],[Ankstesnis laikotarpis]]<0),-((Pajamos[[#This Row],[Ataskaitinis laikotarpis]]/Pajamos[[#This Row],[Ankstesnis laikotarpis]])-1),(Pajamos[[#This Row],[Ataskaitinis laikotarpis]]/Pajamos[[#This Row],[Ankstesnis laikotarpis]])-1))),\"-\")","v":{"v":0,"d":"0.00%"}},{"$f":"IFERROR(IF(Pajamos[[#This Row],[Biudžetas]]=Pajamos[[#This Row],[Ataskaitinis laikotarpis]],0,IF(Pajamos[[#This Row],[Ataskaitinis laikotarpis]]>Pajamos[[#This Row],[Biudžetas]],ABS((Pajamos[[#This Row],[Ataskaitinis laikotarpis]]/Pajamos[[#This Row],[Biudžetas]])-1),IF(AND(Pajamos[[#This Row],[Ataskaitinis laikotarpis]]<Pajamos[[#This Row],[Biudžetas]],Pajamos[[#This Row],[Biudžetas]]<0),-((Pajamos[[#This Row],[Ataskaitinis laikotarpis]]/Pajamos[[#This Row],[Biudžetas]])-1),(Pajamos[[#This Row],[Ataskaitinis laikotarpis]]/Pajamos[[#This Row],[Biudžetas]])-1))),\"-\")","v":{"v":0,"d":"0.00%"}}]
[{"$nulls":6},{"$f":"IFERROR(IF(Pardavimas_pajamos=0,\"-\",Pajamos[[#This Row],[Ataskaitinis laikotarpis]]/Pardavimas_pajamos),\"-\")","v":"-"},{"$f":"IFERROR(IF(Pajamos[[#This Row],[Ankstesnis laikotarpis]]=Pajamos[[#This Row],[Ataskaitinis laikotarpis]],0,IF(Pajamos[[#This Row],[Ataskaitinis laikotarpis]]>Pajamos[[#This Row],[Ankstesnis laikotarpis]],ABS((Pajamos[[#This Row],[Ataskaitinis laikotarpis]]/Pajamos[[#This Row],[Ankstesnis laikotarpis]])-1),IF(AND(Pajamos[[#This Row],[Ataskaitinis laikotarpis]]<Pajamos[[#This Row],[Ankstesnis laikotarpis]],Pajamos[[#This Row],[Ankstesnis laikotarpis]]<0),-((Pajamos[[#This Row],[Ataskaitinis laikotarpis]]/Pajamos[[#This Row],[Ankstesnis laikotarpis]])-1),(Pajamos[[#This Row],[Ataskaitinis laikotarpis]]/Pajamos[[#This Row],[Ankstesnis laikotarpis]])-1))),\"-\")","v":{"v":0,"d":"0.00%"}},{"$f":"IFERROR(IF(Pajamos[[#This Row],[Biudžetas]]=Pajamos[[#This Row],[Ataskaitinis laikotarpis]],0,IF(Pajamos[[#This Row],[Ataskaitinis laikotarpis]]>Pajamos[[#This Row],[Biudžetas]],ABS((Pajamos[[#This Row],[Ataskaitinis laikotarpis]]/Pajamos[[#This Row],[Biudžetas]])-1),IF(AND(Pajamos[[#This Row],[Ataskaitinis laikotarpis]]<Pajamos[[#This Row],[Biudžetas]],Pajamos[[#This Row],[Biudžetas]]<0),-((Pajamos[[#This Row],[Ataskaitinis laikotarpis]]/Pajamos[[#This Row],[Biudžetas]])-1),(Pajamos[[#This Row],[Ataskaitinis laikotarpis]]/Pajamos[[#This Row],[Biudžetas]])-1))),\"-\")","v":{"v":0,"d":"0.00%"}}]
[null,"Bendros pajamos iš pardavimo",null,{"$f":"SUBTOTAL(109,Pajamos[Ankstesnis laikotarpis])","v":0},{"$f":"SUBTOTAL(109,Pajamos[Biudžetas])","v":0},{"$f":"SUBTOTAL(109,Pajamos[Ataskaitinis laikotarpis])","v":0},{"$f":"SUBTOTAL(109,Pajamos[Ataskaitinio laikotarpio pardavimo procentinė dalis])","v":{"v":0,"d":"0.00%"}},{"$f":"SUBTOTAL(109,Pajamos[[Ankstesnio periodo procentinis pokytis ]])","v":{"v":0,"d":"0.00%"}},{"$f":"SUBTOTAL(109,Pajamos[Biudžeto procentinis pokytis])","v":{"v":0,"d":"0.00%"}}]

{"sheet":"Išlaidos","index":3,"n_rows":25,"n_cols":9,"rows_kept":25,"merged":[[0,7,2,8]]}
[null,{"$f":"Darbaknygės_pavadinimas","v":"Pelno (nuostolio) ataskaita"}]
[null,{"$f":"Įmonės_pavadinimas","v":"Įmonės pavadinimas"},"Nurodyta 000s"]
[null,"Veiklos išlaidos",{"$f":"IFERROR(VeiklosIšlaidos[[#Totals],[Ataskaitinis laikotarpis]],\"-\")","v":0}]
[null,"Išlaidų tipas","Aprašas","Ankstesnis laikotarpis","Biudžetas","Ataskaitinis laikotarpis","Ataskaitinio laikotarpio pardavimo procentinė dalis","Ankstesnio periodo procentinis pokytis ","Biudžeto procentinis pokytis"]
[null,"Pardavimas ir rinkodara","Reklama",{"$nulls":3},{"$f":"IFERROR(IF(Pardavimas_pajamos=0,\"-\",VeiklosIšlaidos[[#This Row],[Ataskaitinis laikotarpis]]/Pardavimas_pajamos),\"-\")","v":"-"},{"$f":"IFERROR(IF(VeiklosIšlaidos[[#This Row],[Ankstesnis laikotarpis]]=VeiklosIšlaidos[[#This Row],[Ataskaitinis laikotarpis]],0,IF(VeiklosIšlaidos[[#This Row],[Ataskaitinis laikotarpis]]>VeiklosIšlaidos[[#This Row],[Ankstesnis laikotarpis]],ABS((VeiklosIšlaidos[[#This Row],[Ataskaitinis laikotarpis]]/VeiklosIšlaidos[[#This Row],[Ankstesnis laikotarpis]])-1),IF(AND(VeiklosIšlaidos[[#This Row],[Ataskaitinis laikotarpis]]<VeiklosIšlaidos[[#This Row],[Ankstesnis laikotarpis]],VeiklosIšlaidos[[#This Row],[Ankstesnis laikotarpis]]<0),-((VeiklosIšlaidos[[#This Row],[Ataskaitinis laikotarpis]]/VeiklosIšlaidos[[#This Row],[Ankstesnis laikotarpis]])-1),(VeiklosIšlaidos[[#This Row],[Ataskaitinis laikotarpis]]/VeiklosIšlaidos[[#This Row],[Ankstesnis laikotarpis]])-1))),\"-\")","v":{"v":0,"d":"0.00%"}},{"$f":"IFERROR(IF(VeiklosIšlaidos[[#This Row],[Biudžetas]]=VeiklosIšlaidos[[#This Row],[Ataskaitinis laikotarpis]],0,IF(VeiklosIšlaidos[[#This Row],[Ataskaitinis laikotarpis]]>VeiklosIšlaidos[[#This Row],[Biudžetas]],ABS((VeiklosIšlaidos[[#This Row],[Ataskaitinis laikotarpis]]/VeiklosIšlaidos[[#This Row],[Biudžetas]])-1),IF(AND(VeiklosIšlaidos[[#This Row],[Ataskaitinis laikotarpis]]<VeiklosIšlaidos[[#This Row],[Biudžetas]],VeiklosIšlaidos[[#This Row],[Biudžetas]]<0),-((VeiklosIšlaidos[[#This Row],[Ataskaitinis laikotarpis]]/VeiklosIšlaidos[[#This Row],[Biudžetas]])-1),(VeiklosIšlaidos[[#This Row],[Ataskaitinis laikotarpis]]/VeiklosIšlaidos[[#This Row],[Biudžetas]])-1))),\"-\")","v":{"v":0,"d":"0.00%"}}]
[null,"Pardavimas ir rinkodara","Tiesioginė rinkodara",{"$nulls":3},{"$f":"IFERROR(IF(Pardavimas_pajamos=0,\"-\",VeiklosIšlaidos[[#This Row],[Ataskaitinis laikotarpis]]/Pardavimas_pajamos),\"-\")","v":"-"},{"$f":"IFERROR(IF(VeiklosIšlaidos[[#This Row],[Ankstesnis laikotarpis]]=VeiklosIšlaidos[[#This Row],[Ataskaitinis laikotarpis]],0,IF(VeiklosIšlaidos[[#This Row],[Ataskaitinis laikotarpis]]>VeiklosIšlaidos[[#This Row],[Ankstesnis laikotarpis]],ABS((VeiklosIšlaidos[[#This Row],[Ataskaitinis laikotarpis]]/VeiklosIšlaidos[[#This Row],[Ankstesnis laikotarpis]])-1),IF(AND(VeiklosIšlaidos[[#This Row],[Ataskaitinis laikotarpis]]<VeiklosIšlaidos[[#This Row],[Ankstesnis laikotarpis]],VeiklosIšlaidos[[#This Row],[Ankstesnis laikotarpis]]<0),-((VeiklosIšlaidos[[#This Row],[Ataskaitinis laikotarpis]]/VeiklosIšlaidos[[#This Row],[Ankstesnis laikotarpis]])-1),(VeiklosIšlaidos[[#This Row],[Ataskaitinis laikotarpis]]/VeiklosIšlaidos[[#This Row],[Ankstesnis laikotarpis]])-1))),\"-\")","v":{"v":0,"d":"0.00%"}},{"$f":"IFERROR(IF(VeiklosIšlaidos[[#This Row],[Biudžetas]]=VeiklosIšlaidos[[#This Row],[Ataskaitinis laikotarpis]],0,IF(VeiklosIšlaidos[[#This Row],[Ataskaitinis laikotarpis]]>VeiklosIšlaidos[[#This Row],[Biudžetas]],ABS((VeiklosIšlaidos[[#This Row],[Ataskaitinis laikotarpis]]/VeiklosIšlaidos[[#This Row],[Biudžetas]])-1),IF(AND(VeiklosIšlaidos[[#This Row],[Ataskaitinis laikotarpis]]<VeiklosIšlaidos[[#This Row],[Biudžetas]],VeiklosIšlaidos[[#This Row],[Biudžetas]]<0),-((VeiklosIšlaidos[[#This Row],[Ataskaitinis laikotarpis]]/VeiklosIšlaidos[[#This Row],[Biudžetas]])-1),(VeiklosIšlaidos[[#This Row],[Ataskaitinis laikotarpis]]/VeiklosIšlaidos[[#This Row],[Biudžetas]])-1))),\"-\")","v":{"v":0,"d":"0.00%"}}]
[null,"Pardavimas ir rinkodara","Kitos išlaidos (nurodyti)",{"$nulls":3},{"$f":"IFERROR(IF(Pardavimas_pajamos=0,\"-\",VeiklosIšlaidos[[#This Row],[Ataskaitinis laikotarpis]]/Pardavimas_pajamos),\"-\")","v":"-"},{"$f":"IFERROR(IF(VeiklosIšlaidos[[#This Row],[Ankstesnis laikotarpis]]=VeiklosIšlaidos[[#This Row],[Ataskaitinis laikotarpis]],0,IF(VeiklosIšlaidos[[#This Row],[Ataskaitinis laikotarpis]]>VeiklosIšlaidos[[#This Row],[Ankstesnis laikotarpis]],ABS((VeiklosIšlaidos[[#This Row],[Ataskaitinis laikotarpis]]/VeiklosIšlaidos[[#This Row],[Ankstesnis laikotarpis]])-1),IF(AND(VeiklosIšlaidos[[#This Row],[Ataskaitinis laikotarpis]]<VeiklosIšlaidos[[#This Row],[Ankstesnis laikotarpis]],VeiklosIšlaidos[[#This Row],[Ankstesnis laikotarpis]]<0),-((VeiklosIšlaidos[[#This Row],[Ataskaitinis laikotarpis]]/VeiklosIšlaidos[[#This Row],[Ankstesnis laikotarpis]])-1),(VeiklosIšlaidos[[#This Row],[Ataskaitinis laikotarpis]]/VeiklosIšlaidos[[#This Row],[Ankstesnis laikotarpis]])-1))),\"-\")","v":{"v":0,"d":"0.00%"}},{"$f":"IFERROR(IF(VeiklosIšlaidos[[#This Row],[Biudžetas]]=VeiklosIšlaidos[[#This Row],[Ataskaitinis laikotarpis]],0,IF(VeiklosIšlaidos[[#This Row],[Ataskaitinis laikotarpis]]>VeiklosIšlaidos[[#This Row],[Biudžetas]],ABS((VeiklosIšlaidos[[#This Row],[Ataskaitinis laikotarpis]]/VeiklosIšlaidos[[#This Row],[Biudžetas]])-1),IF(AND(VeiklosIšlaidos[[#This Row],[Ataskaitinis laikotarpis]]<VeiklosIšlaidos[[#This Row],[Biudžetas]],VeiklosIšlaidos[[#This Row],[Biudžetas]]<0),-((VeiklosIšlaidos[[#This Row],[Ataskaitinis laikotarpis]]/VeiklosIšlaidos[[#This Row],[Biudžetas]])-1),(VeiklosIšlaidos[[#This Row],[Ataskaitinis laikotarpis]]/VeiklosIšlaidos[[#This Row],[Biudžetas]])-1))),\"-\")","v":{"v":0,"d":"0.00%"}}]
[null,"Pardavimas ir rinkodara","Kitos išlaidos (nurodyti)",{"$nulls":3},{"$f":"IFERROR(IF(Pardavimas_pajamos=0,\"-\",VeiklosIšlaidos[[#This Row],[Ataskaitinis laikotarpis]]/Pardavimas_pajamos),\"-\")","v":"-"},{"$f":"IFERROR(IF(VeiklosIšlaidos[[#This Row],[Ankstesnis laikotarpis]]=VeiklosIšlaidos[[#This Row],[Ataskaitinis laikotarpis]],0,IF(VeiklosIšlaidos[[#This Row],[Ataskaitinis laikotarpis]]>VeiklosIšlaidos[[#This Row],[Ankstesnis laikotarpis]],ABS((VeiklosIšlaidos[[#This Row],[Ataskaitinis laikotarpis]]/VeiklosIšlaidos[[#This Row],[Ankstesnis laikotarpis]])-1),IF(AND(VeiklosIšlaidos[[#This Row],[Ataskaitinis laikotarpis]]<VeiklosIšlaidos[[#This Row],[Ankstesnis laikotarpis]],VeiklosIšlaidos[[#This Row],[Ankstesnis laikotarpis]]<0),-((VeiklosIšlaidos[[#This Row],[Ataskaitinis laikotarpis]]/VeiklosIšlaidos[[#This Row],[Ankstesnis laikotarpis]])-1),(VeiklosIšlaidos[[#This Row],[Ataskaitinis laikotarpis]]/VeiklosIšlaidos[[#This Row],[Ankstesnis laikotarpis]])-1))),\"-\")","v":{"v":0,"d":"0.00%"}},{"$f":"IFERROR(IF(VeiklosIšlaidos[[#This Row],[Biudžetas]]=VeiklosIšlaidos[[#This Row],[Ataskaitinis laikotarpis]],0,IF(VeiklosIšlaidos[[#This Row],[Ataskaitinis laikotarpis]]>VeiklosIšlaidos[[#This Row],[Biudžetas]],ABS((VeiklosIšlaidos[[#This Row],[Ataskaitinis laikotarpis]]/VeiklosIšlaidos[[#This Row],[Biudžetas]])-1),IF(AND(VeiklosIšlaidos[[#This Row],[Ataskaitinis laikotarpis]]<VeiklosIšlaidos[[#This Row],[Biudžetas]],VeiklosIšlaidos[[#This Row],[Biudžetas]]<0),-((VeiklosIšlaidos[[#This Row],[Ataskaitinis laikotarpis]]/VeiklosIšlaidos[[#This Row],[Biudžetas]])-1),(VeiklosIšlaidos[[#This Row],[Ataskaitinis laikotarpis]]/VeiklosIšlaidos[[#This Row],[Biudžetas]])-1))),\"-\")","v":{"v":0,"d":"0.00%"}}]
[null,"Tyrimai ir plėtra","Technologijų licencijos",{"$nulls":3},{"$f":"IFERROR(IF(Pardavimas_pajamos=0,\"-\",VeiklosIšlaidos[[#This Row],[Ataskaitinis laikotarpis]]/Pardavimas_pajamos),\"-\")","v":"-"},{"$f":"IFERROR(IF(VeiklosIšlaidos[[#This Row],[Ankstesnis laikotarpis]]=VeiklosIšlaidos[[#This Row],[Ataskaitinis laikotarpis]],0,IF(VeiklosIšlaidos[[#This Row],[Ataskaitinis laikotarpis]]>VeiklosIšlaidos[[#This Row],[Ankstesnis laikotarpis]],ABS((VeiklosIšlaidos[[#This Row],[Ataskaitinis laikotarpis]]/VeiklosIšlaidos[[#This Row],[Ankstesnis laikotarpis]])-1),IF(AND(VeiklosIšlaidos[[#This Row],[Ataskaitinis laikotarpis]]<VeiklosIšlaidos[[#This Row],[Ankstesnis laikotarpis]],VeiklosIšlaidos[[#This Row],[Ankstesnis laikotarpis]]<0),-((VeiklosIšlaidos[[#This Row],[Ataskaitinis laikotarpis]]/VeiklosIšlaidos[[#This Row],[Ankstesnis laikotarpis]])-1),(VeiklosIšlaidos[[#This Row],[Ataskaitinis laikotarpis]]/VeiklosIšlaidos[[#This Row],[Ankstesnis laikotarpis]])-1))),\"-\")","v":{"v":0,"d":"0.00%"}},{"$f":"IFERROR(IF(VeiklosIšlaidos[[#This Row],[Biudžetas]]=VeiklosIšlaidos[[#This Row],[Ataskaitinis laikotarpis]],0,IF(VeiklosIšlaidos[[#This Row],[Ataskaitinis laikotarpis]]>VeiklosIšlaidos[[#This Row],[Biudžetas]],ABS((VeiklosIšlaidos[[#This Row],[Ataskaitinis laikotarpis]]/VeiklosIšlaidos[[#This Row],[Biudžetas]])-1),IF(AND(VeiklosIšlaidos[[#This Row],[Ataskaitinis laikotarpis]]<VeiklosIšlaidos[[#This Row],[Biudžetas]],VeiklosIšlaidos[[#This Row],[Biudžetas]]<0),-((VeiklosIšlaidos[[#This Row],[Ataskaitinis laikotarpis]]/VeiklosIšlaidos[[#This Row],[Biudžetas]])-1),(VeiklosIšlaidos[[#This Row],[Ataskaitinis laikotarpis]]/VeiklosIšlaidos[[#This Row],[Biudžetas]])-1))),\"-\")","v":{"v":0,"d":"0.00%"}}]
[null,"Tyrimai ir plėtra","Patentai ",{"$nulls":3},{"$f":"IFERROR(IF(Pardavimas_pajamos=0,\"-\",VeiklosIšlaidos[[#This Row],[Ataskaitinis laikotarpis]]/Pardavimas_pajamos),\"-\")","v":"-"},{"$f":"IFERROR(IF(VeiklosIšlaidos[[#This Row],[Ankstesnis laikotarpis]]=VeiklosIšlaidos[[#This Row],[Ataskaitinis laikotarpis]],0,IF(VeiklosIšlaidos[[#This Row],[Ataskaitinis laikotarpis]]>VeiklosIšlaidos[[#This Row],[Ankstesnis laikotarpis]],ABS((VeiklosIšlaidos[[#This Row],[Ataskaitinis laikotarpis]]/VeiklosIšlaidos[[#This Row],[Ankstesnis laikotarpis]])-1),IF(AND(VeiklosIšlaidos[[#This Row],[Ataskaitinis laikotarpis]]<VeiklosIšlaidos[[#This Row],[Ankstesnis laikotarpis]],VeiklosIšlaidos[[#This Row],[Ankstesnis laikotarpis]]<0),-((VeiklosIšlaidos[[#This Row],[Ataskaitinis laikotarpis]]/VeiklosIšlaidos[[#This Row],[Ankstesnis laikotarpis]])-1),(VeiklosIšlaidos[[#This Row],[Ataskaitinis laikotarpis]]/VeiklosIšlaidos[[#This Row],[Ankstesnis laikotarpis]])-1))),\"-\")","v":{"v":0,"d":"0.00%"}},{"$f":"IFERROR(IF(VeiklosIšlaidos[[#This Row],[Biudžetas]]=VeiklosIšlaidos[[#This Row],[Ataskaitinis laikotarpis]],0,IF(VeiklosIšlaidos[[#This Row],[Ataskaitinis laikotarpis]]>VeiklosIšlaidos[[#This Row],[Biudžetas]],ABS((VeiklosIšlaidos[[#This Row],[Ataskaitinis laikotarpis]]/VeiklosIšlaidos[[#This Row],[Biudžetas]])-1),IF(AND(VeiklosIšlaidos[[#This Row],[Ataskaitinis laikotarpis]]<VeiklosIšlaidos[[#This Row],[Biudžetas]],VeiklosIšlaidos[[#This Row],[Biudžetas]]<0),-((VeiklosIšlaidos[[#This Row],[Ataskaitinis laikotarpis]]/VeiklosIšlaidos[[#This Row],[Biudžetas]])-1),(VeiklosIšlaidos[[#This Row],[Ataskaitinis laikotarpis]]/VeiklosIšlaidos[[#This Row],[Biudžetas]])-1))),\"-\")","v":{"v":0,"d":"0.00%"}}]
[null,"Tyrimai ir plėtra","Kitos išlaidos (nurodyti)",{"$nulls":3},{"$f":"IFERROR(IF(Pardavimas_pajamos=0,\"-\",VeiklosIšlaidos[[#This Row],[Ataskaitinis laikotarpis]]/Pardavimas_pajamos),\"-\")","v":"-"},{"$f":"IFERROR(IF(VeiklosIšlaidos[[#This Row],[Ankstesnis laikotarpis]]=VeiklosIšlaidos[[#This Row],[Ataskaitinis laikotarpis]],0,IF(VeiklosIšlaidos[[#This Row],[Ataskaitinis laikotarpis]]>VeiklosIšlaidos[[#This Row],[Ankstesnis laikotarpis]],ABS((VeiklosIšlaidos[[#This Row],[Ataskaitinis laikotarpis]]/VeiklosIšlaidos[[#This Row],[Ankstesnis laikotarpis]])-1),IF(AND(VeiklosIšlaidos[[#This Row],[Ataskaitinis laikotarpis]]<VeiklosIšlaidos[[#This Row],[Ankstesnis laikotarpis]],VeiklosIšlaidos[[#This Row],[Ankstesnis laikotarpis]]<0),-((VeiklosIšlaidos[[#This Row],[Ataskaitinis laikotarpis]]/VeiklosIšlaidos[[#This Row],[Ankstesnis laikotarpis]])-1),(VeiklosIšlaidos[[#This Row],[Ataskaitinis laikotarpis]]/VeiklosIšlaidos[[#This Row],[Ankstesnis laikotarpis]])-1))),\"-\")","v":{"v":0,"d":"0.00%"}},{"$f":"IFERROR(IF(VeiklosIšlaidos[[#This Row],[Biudžetas]]=VeiklosIšlaidos[[#This Row],[Ataskaitinis laikotarpis]],0,IF(VeiklosIšlaidos[[#This Row],[Ataskaitinis laikotarpis]]>VeiklosIšlaidos[[#This Row],[Biudžetas]],ABS((VeiklosIšlaidos[[#This Row],[Ataskaitinis laikotarpis]]/VeiklosIšlaidos[[#This Row],[Biudžetas]])-1),IF(AND(VeiklosIšlaidos[[#This Row],[Ataskaitinis laikotarpis]]<VeiklosIšlaidos[[#This Row],[Biudžetas]],VeiklosIšlaidos[[#This Row],[Biudžetas]]<0),-((VeiklosIšlaidos[[#This Row],[Ataskaitinis laikotarpis]]/VeiklosIšlaidos[[#This Row],[Biudžetas]])-1),(VeiklosIšlaidos[[#This Row],[Ataskaitinis laikotarpis]]/VeiklosIšlaidos[[#This Row],[Biudžetas]])-1))),\"-\")","v":{"v":0,"d":"0.00%"}}]
[null,"Tyrimai ir plėtra","Kitos išlaidos (nurodyti)",{"$nulls":3},{"$f":"IFERROR(IF(Pardavimas_pajamos=0,\"-\",VeiklosIšlaidos[[#This Row],[Ataskaitinis laikotarpis]]/Pardavimas_pajamos),\"-\")","v":"-"},{"$f":"IFERROR(IF(VeiklosIšlaidos[[#This Row],[Ankstesnis laikotarpis]]=VeiklosIšlaidos[[#This Row],[Ataskaitinis laikotarpis]],0,IF(VeiklosIšlaidos[[#This Row],[Ataskaitinis laikotarpis]]>VeiklosIšlaidos[[#This Row],[Ankstesnis laikotarpis]],ABS((VeiklosIšlaidos[[#This Row],[Ataskaitinis laikotarpis]]/VeiklosIšlaidos[[#This Row],[Ankstesnis laikotarpis]])-1),IF(AND(VeiklosIšlaidos[[#This Row],[Ataskaitinis laikotarpis]]<VeiklosIšlaidos[[#This Row],[Ankstesnis laikotarpis]],VeiklosIšlaidos[[#This Row],[Ankstesnis laikotarpis]]<0),-((VeiklosIšlaidos[[#This Row],[Ataskaitinis laikotarpis]]/VeiklosIšlaidos[[#This Row],[Ankstesnis laikotarpis]])-1),(VeiklosIšlaidos[[#This Row],[Ataskaitinis laikotarpis]]/VeiklosIšlaidos[[#This Row],[Ankstesnis laikotarpis]])-1))),\"-\")","v":{"v":0,"d":"0.00%"}},{"$f":"IFERROR(IF(VeiklosIšlaidos[[#This Row],[Biudžetas]]=VeiklosIšlaidos[[#This Row],[Ataskaitinis laikotarpis]],0,IF(VeiklosIšlaidos[[#This Row],[Ataskaitinis laikotarpis]]>VeiklosIšlaidos[[#This Row],[Biudžetas]],ABS((VeiklosIšlaidos[[#This Row],[Ataskaitinis laikotarpis]]/VeiklosIšlaidos[[#This Row],[Biudžetas]])-1),IF(AND(VeiklosIšlaidos[[#This Row],[Ataskaitinis laikotarpis]]<VeiklosIšlaidos[[#This Row],[Biudžetas]],VeiklosIšlaidos[[#This Row],[Biudžetas]]<0),-((VeiklosIšlaidos[[#This Row],[Ataskaitinis laikotarpis]]/VeiklosIšlaidos[[#This Row],[Biudžetas]])-1),(VeiklosIšlaidos[[#This Row],[Ataskaitinis laikotarpis]]/VeiklosIšlaidos[[#This Row],[Biudžetas]])-1))),\"-\")","v":{"v":0,"d":"0.00%"}}]
[null,"Bendrosios ir administravimo","Darbo užmokestis",{"$nulls":3},{"$f":"IFERROR(IF(Pardavimas_pajamos=0,\"-\",VeiklosIšlaidos[[#This Row],[Ataskaitinis laikotarpis]]/Pardavimas_pajamos),\"-\")","v":"-"},{"$f":"IFERROR(IF(VeiklosIšlaidos[[#This Row],[Ankstesnis laikotarpis]]=VeiklosIšlaidos[[#This Row],[Ataskaitinis laikotarpis]],0,IF(VeiklosIšlaidos[[#This Row],[Ataskaitinis laikotarpis]]>VeiklosIšlaidos[[#This Row],[Ankstesnis laikotarpis]],ABS((VeiklosIšlaidos[[#This Row],[Ataskaitinis laikotarpis]]/VeiklosIšlaidos[[#This Row],[Ankstesnis laikotarpis]])-1),IF(AND(VeiklosIšlaidos[[#This Row],[Ataskaitinis laikotarpis]]<VeiklosIšlaidos[[#This Row],[Ankstesnis laikotarpis]],VeiklosIšlaidos[[#This Row],[Ankstesnis laikotarpis]]<0),-((VeiklosIšlaidos[[#This Row],[Ataskaitinis laikotarpis]]/VeiklosIšlaidos[[#This Row],[Ankstesnis laikotarpis]])-1),(VeiklosIšlaidos[[#This Row],[Ataskaitinis laikotarpis]]/VeiklosIšlaidos[[#This Row],[Ankstesnis laikotarpis]])-1))),\"-\")","v":{"v":0,"d":"0.00%"}},{"$f":"IFERROR(IF(VeiklosIšlaidos[[#This Row],[Biudžetas]]=VeiklosIšlaidos[[#This Row],[Ataskaitinis laikotarpis]],0,IF(VeiklosIšlaidos[[#This Row],[Ataskaitinis laikotarpis]]>VeiklosIšlaidos[[#This Row],[Biudžetas]],ABS((VeiklosIšlaidos[[#This Row],[Ataskaitinis laikotarpis]]/VeiklosIšlaidos[[#This Row],[Biudžetas]])-1),IF(AND(VeiklosIšlaidos[[#This Row],[Ataskaitinis laikotarpis]]<VeiklosIšlaidos[[#This Row],[Biudžetas]],VeiklosIšlaidos[[#This Row],[Biudžetas]]<0),-((VeiklosIšlaidos[[#This Row],[Ataskaitinis laikotarpis]]/VeiklosIšlaidos[[#This Row],[Biudžetas]])-1),(VeiklosIšlaidos[[#This Row],[Ataskaitinis laikotarpis]]/VeiklosIšlaidos[[#This Row],[Biudžetas]])-1))),\"-\")","v":{"v":0,"d":"0.00%"}}]
[null,"Bendrosios ir administravimo","Išorinės paslaugos",{"$nulls":3},{"$f":"IFERROR(IF(Pardavimas_pajamos=0,\"-\",VeiklosIšlaidos[[#This Row],[Ataskaitinis laikotarpis]]/Pardavimas_pajamos),\"-\")","v":"-"},{"$f":"IFERROR(IF(VeiklosIšlaidos[[#This Row],[Ankstesnis laikotarpis]]=VeiklosIšlaidos[[#This Row],[Ataskaitinis laikotarpis]],0,IF(VeiklosIšlaidos[[#This Row],[Ataskaitinis laikotarpis]]>VeiklosIšlaidos[[#This Row],[Ankstesnis laikotarpis]],ABS((VeiklosIšlaidos[[#This Row],[Ataskaitinis laikotarpis]]/VeiklosIšlaidos[[#This Row],[Ankstesnis laikotarpis]])-1),IF(AND(VeiklosIšlaidos[[#This Row],[Ataskaitinis laikotarpis]]<VeiklosIšlaidos[[#This Row],[Ankstesnis laikotarpis]],VeiklosIšlaidos[[#This Row],[Ankstesnis laikotarpis]]<0),-((VeiklosIšlaidos[[#This Row],[Ataskaitinis laikotarpis]]/VeiklosIšlaidos[[#This Row],[Ankstesnis laikotarpis]])-1),(VeiklosIšlaidos[[#This Row],[Ataskaitinis laikotarpis]]/VeiklosIšlaidos[[#This Row],[Ankstesnis laikotarpis]])-1))),\"-\")","v":{"v":0,"d":"0.00%"}},{"$f":"IFERROR(IF(VeiklosIšlaidos[[#This Row],[Biudžetas]]=VeiklosIšlaidos[[#This Row],[Ataskaitinis laikotarpis]],0,IF(VeiklosIšlaidos[[#This Row],[Ataskaitinis laikotarpis]]>VeiklosIšlaidos[[#This Row],[Biudžetas]],ABS((VeiklosIšlaidos[[#This Row],[Ataskaitinis laikotarpis]]/VeiklosIšlaidos[[#This Row],[Biudžetas]])-1),IF(AND(VeiklosIšlaidos[[#This Row],[Ataskaitinis laikotarpis]]<VeiklosIšlaidos[[#This Row],[Biudžetas]],VeiklosIšlaidos[[#This Row],[Biudžetas]]<0),-((VeiklosIšlaidos[[#This Row],[Ataskaitinis laikotarpis]]/VeiklosIšlaidos[[#This Row],[Biudžetas]])-1),(VeiklosIšlaidos[[#This Row],[Ataskaitinis laikotarpis]]/VeiklosIšlaidos[[#This Row],[Biudžetas]])-1))),\"-\")","v":{"v":0,"d":"0.00%"}}]
[null,"Bendrosios ir administravimo","Priemonės",{"$nulls":3},{"$f":"IFERROR(IF(Pardavimas_pajamos=0,\"-\",VeiklosIšlaidos[[#This Row],[Ataskaitinis laikotarpis]]/Pardavimas_pajamos),\"-\")","v":"-"},{"$f":"IFERROR(IF(VeiklosIšlaidos[[#This Row],[Ankstesnis laikotarpis]]=VeiklosIšlaidos[[#This Row],[Ataskaitinis laikotarpis]],0,IF(VeiklosIšlaidos[[#This Row],[Ataskaitinis laikotarpis]]>VeiklosIšlaidos[[#This Row],[Ankstesnis laikotarpis]],ABS((VeiklosIšlaidos[[#This Row],[Ataskaitinis laikotarpis]]/VeiklosIšlaidos[[#This Row],[Ankstesnis laikotarpis]])-1),IF(AND(VeiklosIšlaidos[[#This Row],[Ataskaitinis laikotarpis]]<VeiklosIšlaidos[[#This Row],[Ankstesnis laikotarpis]],VeiklosIšlaidos[[#This Row],[Ankstesnis laikotarpis]]<0),-((VeiklosIšlaidos[[#This Row],[Ataskaitinis laikotarpis]]/VeiklosIšlaidos[[#This Row],[Ankstesnis laikotarpis]])-1),(VeiklosIšlaidos[[#This Row],[Ataskaitinis laikotarpis]]/VeiklosIšlaidos[[#This Row],[Ankstesnis laikotarpis]])-1))),\"-\")","v":{"v":0,"d":"0.00%"}},{"$f":"IFERROR(IF(VeiklosIšlaidos[[#This Row],[Biudžetas]]=VeiklosIšlaidos[[#This Row],[Ataskaitinis laikotarpis]],0,IF(VeiklosIšlaidos[[#This Row],[Ataskaitinis laikotarpis]]>VeiklosIšlaidos[[#This Row],[Biudžetas]],ABS((VeiklosIšlaidos[[#This Row],[Ataskaitinis laikotarpis]]/VeiklosIšlaidos[[#This Row],[Biudžetas]])-1),IF(AND(VeiklosIšlaidos[[#This Row],[Ataskaitinis laikotarpis]]<VeiklosIšlaidos[[#This Row],[Biudžetas]],VeiklosIšlaidos[[#This Row],[Biudžetas]]<0),-((VeiklosIšlaidos[[#This Row],[Ataskaitinis laikotarpis]]/VeiklosIšlaidos[[#This Row],[Biudžetas]])-1),(VeiklosIšlaidos[[#This Row],[Ataskaitinis laikotarpis]]/VeiklosIšlaidos[[#This Row],[Biudžetas]])-1))),\"-\")","v":{"v":0,"d":"0.00%"}}]
[null,"Bendrosios ir administravimo","Maistas ir pramogos",{"$nulls":3},{"$f":"IFERROR(IF(Pardavimas_pajamos=0,\"-\",VeiklosIšlaidos[[#This Row],[Ataskaitinis laikotarpis]]/Pardavimas_pajamos),\"-\")","v":"-"},{"$f":"IFERROR(IF(VeiklosIšlaidos[[#This Row],[Ankstesnis laikotarpis]]=VeiklosIšlaidos[[#This Row],[Ataskaitinis laikotarpis]],0,IF(VeiklosIšlaidos[[#This Row],[Ataskaitinis laikotarpis]]>VeiklosIšlaidos[[#This Row],[Ankstesnis laikotarpis]],ABS((VeiklosIšlaidos[[#This Row],[Ataskaitinis laikotarpis]]/VeiklosIšlaidos[[#This Row],[Ankstesnis laikotarpis]])-1),IF(AND(VeiklosIšlaidos[[#This Row],[Ataskaitinis laikotarpis]]<VeiklosIšlaidos[[#This Row],[Ankstesnis laikotarpis]],VeiklosIšlaidos[[#This Row],[Ankstesnis laikotarpis]]<0),-((VeiklosIšlaidos[[#This Row],[Ataskaitinis laikotarpis]]/VeiklosIšlaidos[[#This Row],[Ankstesnis laikotarpis]])-1),(VeiklosIšlaidos[[#This Row],[Ataskaitinis laikotarpis]]/VeiklosIšlaidos[[#This Row],[Ankstesnis laikotarpis]])-1))),\"-\")","v":{"v":0,"d":"0.00%"}},{"$f":"IFERROR(IF(VeiklosIšlaidos[[#This Row],[Biudžetas]]=VeiklosIšlaidos[[#This Row],[Ataskaitinis laikotarpis]],0,IF(VeiklosIšlaidos[[#This Row],[Ataskaitinis laikotarpis]]>VeiklosIšlaidos[[#This Row],[Biudžetas]],ABS((VeiklosIšlaidos[[#This Row],[Ataskaitinis laikotarpis]]/VeiklosIšlaidos[[#This Row],[Biudžetas]])-1),IF(AND(VeiklosIšlaidos[[#This Row],[Ataskaitinis laikotarpis]]<VeiklosIšlaidos[[#This Row],[Biudžetas]],VeiklosIšlaidos[[#This Row],[Biudžetas]]<0),-((VeiklosIšlaidos[[#This Row],[Ataskaitinis laikotarpis]]/VeiklosIšlaidos[[#This Row],[Biudžetas]])-1),(VeiklosIšlaidos[[#This Row],[Ataskaitinis laikotarpis]]/VeiklosIšlaidos[[#This Row],[Biudžetas]])-1))),\"-\")","v":{"v":0,"d":"0.00%"}}]
[null,"Bendrosios ir administravimo","Nuoma",{"$nulls":3},{"$f":"IFERROR(IF(Pardavimas_pajamos=0,\"-\",VeiklosIšlaidos[[#This Row],[Ataskaitinis laikotarpis]]/Pardavimas_pajamos),\"-\")","v":"-"},{"$f":"IFERROR(IF(VeiklosIšlaidos[[#This Row],[Ankstesnis laikotarpis]]=VeiklosIšlaidos[[#This Row],[Ataskaitinis laikotarpis]],0,IF(VeiklosIšlaidos[[#This Row],[Ataskaitinis laikotarpis]]>VeiklosIšlaidos[[#This Row],[Ankstesnis laikotarpis]],ABS((VeiklosIšlaidos[[#This Row],[Ataskaitinis laikotarpis]]/VeiklosIšlaidos[[#This Row],[Ankstesnis laikotarpis]])-1),IF(AND(VeiklosIšlaidos[[#This Row],[Ataskaitinis laikotarpis]]<VeiklosIšlaidos[[#This Row],[Ankstesnis laikotarpis]],VeiklosIšlaidos[[#This Row],[Ankstesnis laikotarpis]]<0),-((VeiklosIšlaidos[[#This Row],[Ataskaitinis laikotarpis]]/VeiklosIšlaidos[[#This Row],[Ankstesnis laikotarpis]])-1),(VeiklosIšlaidos[[#This Row],[Ataskaitinis laikotarpis]]/VeiklosIšlaidos[[#This Row],[Ankstesnis laikotarpis]])-1))),\"-\")","v":{"v":0,"d":"0.00%"}},{"$f":"IFERROR(IF(VeiklosIšlaidos[[#This Row],[Biudžetas]]=VeiklosIšlaidos[[#This Row],[Ataskaitinis laikotarpis]],0,IF(VeiklosIšlaidos[[#This Row],[Ataskaitinis laikotarpis]]>VeiklosIšlaidos[[#This Row],[Biudžetas]],ABS((VeiklosIšlaidos[[#This Row],[Ataskaitinis laikotarpis]]/VeiklosIšlaidos[[#This Row],[Biudžetas]])-1),IF(AND(VeiklosIšlaidos[[#This Row],[Ataskaitinis laikotarpis]]<VeiklosIšlaidos[[#This Row],[Biudžetas]],VeiklosIšlaidos[[#This Row],[Biudžetas]]<0),-((VeiklosIšlaidos[[#This Row],[Ataskaitinis laikotarpis]]/VeiklosIšlaidos[[#This Row],[Biudžetas]])-1),(VeiklosIšlaidos[[#This Row],[Ataskaitinis laikotarpis]]/VeiklosIšlaidos[[#This Row],[Biudžetas]])-1))),\"-\")","v":{"v":0,"d":"0.00%"}}]
[null,"Bendrosios ir administravimo","Telefonas",{"$nulls":3},{"$f":"IFERROR(IF(Pardavimas_pajamos=0,\"-\",VeiklosIšlaidos[[#This Row],[Ataskaitinis laikotarpis]]/Pardavimas_pajamos),\"-\")","v":"-"},{"$f":"IFERROR(IF(VeiklosIšlaidos[[#This Row],[Ankstesnis laikotarpis]]=VeiklosIšlaidos[[#This Row],[Ataskaitinis laikotarpis]],0,IF(VeiklosIšlaidos[[#This Row],[Ataskaitinis laikotarpis]]>VeiklosIšlaidos[[#This Row],[Ankstesnis laikotarpis]],ABS((VeiklosIšlaidos[[#This Row],[Ataskaitinis laikotarpis]]/VeiklosIšlaidos[[#This Row],[Ankstesnis laikotarpis]])-1),IF(AND(VeiklosIšlaidos[[#This Row],[Ataskaitinis laikotarpis]]<VeiklosIšlaidos[[#This Row],[Ankstesnis laikotarpis]],VeiklosIšlaidos[[#This Row],[Ankstesnis laikotarpis]]<0),-((VeiklosIšlaidos[[#This Row],[Ataskaitinis laikotarpis]]/VeiklosIšlaidos[[#This Row],[Ankstesnis laikotarpis]])-1),(VeiklosIšlaidos[[#This Row],[Ataskaitinis laikotarpis]]/VeiklosIšlaidos[[#This Row],[Ankstesnis laikotarpis]])-1))),\"-\")","v":{"v":0,"d":"0.00%"}},{"$f":"IFERROR(IF(VeiklosIšlaidos[[#This Row],[Biudžetas]]=VeiklosIšlaidos[[#This Row],[Ataskaitinis laikotarpis]],0,IF(VeiklosIšlaidos[[#This Row],[Ataskaitinis laikotarpis]]>VeiklosIšlaidos[[#This Row],[Biudžetas]],ABS((VeiklosIšlaidos[[#This Row],[Ataskaitinis laikotarpis]]/VeiklosIšlaidos[[#This Row],[Biudžetas]])-1),IF(AND(VeiklosIšlaidos[[#This Row],[Ataskaitinis laikotarpis]]<VeiklosIšlaidos[[#This Row],[Biudžetas]],VeiklosIšlaidos[[#This Row],[Biudžetas]]<0),-((VeiklosIšlaidos[[#This Row],[Ataskaitinis laikotarpis]]/VeiklosIšlaidos[[#This Row],[Biudžetas]])-1),(VeiklosIšlaidos[[#This Row],[Ataskaitinis laikotarpis]]/VeiklosIšlaidos[[#This Row],[Biudžetas]])-1))),\"-\")","v":{"v":0,"d":"0.00%"}}]
[null,"Bendrosios ir administravimo","Komunalinės paslaugos",{"$nulls":3},{"$f":"IFERROR(IF(Pardavimas_pajamos=0,\"-\",VeiklosIšlaidos[[#This Row],[Ataskaitinis laikotarpis]]/Pardavimas_pajamos),\"-\")","v":"-"},{"$f":"IFERROR(IF(VeiklosIšlaidos[[#This Row],[Ankstesnis laikotarpis]]=VeiklosIšlaidos[[#This Row],[Ataskaitinis laikotarpis]],0,IF(VeiklosIšlaidos[[#This Row],[Ataskaitinis laikotarpis]]>VeiklosIšlaidos[[#This Row],[Ankstesnis laikotarpis]],ABS((VeiklosIšlaidos[[#This Row],[Ataskaitinis laikotarpis]]/VeiklosIšlaidos[[#This Row],[Ankstesnis laikotarpis]])-1),IF(AND(VeiklosIšlaidos[[#This Row],[Ataskaitinis laikotarpis]]<VeiklosIšlaidos[[#This Row],[Ankstesnis laikotarpis]],VeiklosIšlaidos[[#This Row],[Ankstesnis laikotarpis]]<0),-((VeiklosIšlaidos[[#This Row],[Ataskaitinis laikotarpis]]/VeiklosIšlaidos[[#This Row],[Ankstesnis laikotarpis]])-1),(VeiklosIšlaidos[[#This Row],[Ataskaitinis laikotarpis]]/VeiklosIšlaidos[[#This Row],[Ankstesnis laikotarpis]])-1))),\"-\")","v":{"v":0,"d":"0.00%"}},{"$f":"IFERROR(IF(VeiklosIšlaidos[[#This Row],[Biudžetas]]=VeiklosIšlaidos[[#This Row],[Ataskaitinis laikotarpis]],0,IF(VeiklosIšlaidos[[#This Row],[Ataskaitinis laikotarpis]]>VeiklosIšlaidos[[#This Row],[Biudžetas]],ABS((VeiklosIšlaidos[[#This Row],[Ataskaitinis laikotarpis]]/VeiklosIšlaidos[[#This Row],[Biudžetas]])-1),IF(AND(VeiklosIšlaidos[[#This Row],[Ataskaitinis laikotarpis]]<VeiklosIšlaidos[[#This Row],[Biudžetas]],VeiklosIšlaidos[[#This Row],[Biudžetas]]<0),-((VeiklosIšlaidos[[#This Row],[Ataskaitinis laikotarpis]]/VeiklosIšlaidos[[#This Row],[Biudžetas]])-1),(VeiklosIšlaidos[[#This Row],[Ataskaitinis laikotarpis]]/VeiklosIšlaidos[[#This Row],[Biudžetas]])-1))),\"-\")","v":{"v":0,"d":"0.00%"}}]
[null,"Bendrosios ir administravimo","Nusidėvėjimas",{"$nulls":3},{"$f":"IFERROR(IF(Pardavimas_pajamos=0,\"-\",VeiklosIšlaidos[[#This Row],[Ataskaitinis laikotarpis]]/Pardavimas_pajamos),\"-\")","v":"-"},{"$f":"IFERROR(IF(VeiklosIšlaidos[[#This Row],[Ankstesnis laikotarpis]]=VeiklosIšlaidos[[#This Row],[Ataskaitinis laikotarpis]],0,IF(VeiklosIšlaidos[[#This Row],[Ataskaitinis laikotarpis]]>VeiklosIšlaidos[[#This Row],[Ankstesnis laikotarpis]],ABS((VeiklosIšlaidos[[#This Row],[Ataskaitinis laikotarpis]]/VeiklosIšlaidos[[#This Row],[Ankstesnis laikotarpis]])-1),IF(AND(VeiklosIšlaidos[[#This Row],[Ataskaitinis laikotarpis]]<VeiklosIšlaidos[[#This Row],[Ankstesnis laikotarpis]],VeiklosIšlaidos[[#This Row],[Ankstesnis laikotarpis]]<0),-((VeiklosIšlaidos[[#This Row],[Ataskaitinis laikotarpis]]/VeiklosIšlaidos[[#This Row],[Ankstesnis laikotarpis]])-1),(VeiklosIšlaidos[[#This Row],[Ataskaitinis laikotarpis]]/VeiklosIšlaidos[[#This Row],[Ankstesnis laikotarpis]])-1))),\"-\")","v":{"v":0,"d":"0.00%"}},{"$f":"IFERROR(IF(VeiklosIšlaidos[[#This Row],[Biudžetas]]=VeiklosIšlaidos[[#This Row],[Ataskaitinis laikotarpis]],0,IF(VeiklosIšlaidos[[#This Row],[Ataskaitinis laikotarpis]]>VeiklosIšlaidos[[#This Row],[Biudžetas]],ABS((VeiklosIšlaidos[[#This Row],[Ataskaitinis laikotarpis]]/VeiklosIšlaidos[[#This Row],[Biudžetas]])-1),IF(AND(VeiklosIšlaidos[[#This Row],[Ataskaitinis laikotarpis]]<VeiklosIšlaidos[[#This Row],[Biudžetas]],VeiklosIšlaidos[[#This Row],[Biudžetas]]<0),-((VeiklosIšlaidos[[#This Row],[Ataskaitinis laikotarpis]]/VeiklosIšlaidos[[#This Row],[Biudžetas]])-1),(VeiklosIšlaidos[[#This Row],[Ataskaitinis laikotarpis]]/VeiklosIšlaidos[[#This Row],[Biudžetas]])-1))),\"-\")","v":{"v":0,"d":"0.00%"}}]
[null,"Bendrosios ir administravimo","Draudimas",{"$nulls":3},{"$f":"IFERROR(IF(Pardavimas_pajamos=0,\"-\",VeiklosIšlaidos[[#This Row],[Ataskaitinis laikotarpis]]/Pardavimas_pajamos),\"-\")","v":"-"},{"$f":"IFERROR(IF(VeiklosIšlaidos[[#This Row],[Ankstesnis laikotarpis]]=VeiklosIšlaidos[[#This Row],[Ataskaitinis laikotarpis]],0,IF(VeiklosIšlaidos[[#This Row],[Ataskaitinis laikotarpis]]>VeiklosIšlaidos[[#This Row],[Ankstesnis laikotarpis]],ABS((VeiklosIšlaidos[[#This Row],[Ataskaitinis laikotarpis]]/VeiklosIšlaidos[[#This Row],[Ankstesnis laikotarpis]])-1),IF(AND(VeiklosIšlaidos[[#This Row],[Ataskaitinis laikotarpis]]<VeiklosIšlaidos[[#This Row],[Ankstesnis laikotarpis]],VeiklosIšlaidos[[#This Row],[Ankstesnis laikotarpis]]<0),-((VeiklosIšlaidos[[#This Row],[Ataskaitinis laikotarpis]]/VeiklosIšlaidos[[#This Row],[Ankstesnis laikotarpis]])-1),(VeiklosIšlaidos[[#This Row],[Ataskaitinis laikotarpis]]/VeiklosIšlaidos[[#This Row],[Ankstesnis laikotarpis]])-1))),\"-\")","v":{"v":0,"d":"0.00%"}},{"$f":"IFERROR(IF(VeiklosIšlaidos[[#This Row],[Biudžetas]]=VeiklosIšlaidos[[#This Row],[Ataskaitinis laikotarpis]],0,IF(VeiklosIšlaidos[[#This Row],[Ataskaitinis laikotarpis]]>VeiklosIšlaidos[[#This Row],[Biudžetas]],ABS((VeiklosIšlaidos[[#This Row],[Ataskaitinis laikotarpis]]/VeiklosIšlaidos[[#This Row],[Biudžetas]])-1),IF(AND(VeiklosIšlaidos[[#This Row],[Ataskaitinis laikotarpis]]<VeiklosIšlaidos[[#This Row],[Biudžetas]],VeiklosIšlaidos[[#This Row],[Biudžetas]]<0),-((VeiklosIšlaidos[[#This Row],[Ataskaitinis laikotarpis]]/VeiklosIšlaidos[[#This Row],[Biudžetas]])-1),(VeiklosIšlaidos[[#This Row],[Ataskaitinis laikotarpis]]/VeiklosIšlaidos[[#This Row],[Biudžetas]])-1))),\"-\")","v":{"v":0,"d":"0.00%"}}]
[null,"Bendrosios ir administravimo","Remontas ir priežiūra",{"$nulls":3},{"$f":"IFERROR(IF(Pardavimas_pajamos=0,\"-\",VeiklosIšlaidos[[#This Row],[Ataskaitinis laikotarpis]]/Pardavimas_pajamos),\"-\")","v":"-"},{"$f":"IFERROR(IF(VeiklosIšlaidos[[#This Row],[Ankstesnis laikotarpis]]=VeiklosIšlaidos[[#This Row],[Ataskaitinis laikotarpis]],0,IF(VeiklosIšlaidos[[#This Row],[Ataskaitinis laikotarpis]]>VeiklosIšlaidos[[#This Row],[Ankstesnis laikotarpis]],ABS((VeiklosIšlaidos[[#This Row],[Ataskaitinis laikotarpis]]/VeiklosIšlaidos[[#This Row],[Ankstesnis laikotarpis]])-1),IF(AND(VeiklosIšlaidos[[#This Row],[Ataskaitinis laikotarpis]]<VeiklosIšlaidos[[#This Row],[Ankstesnis laikotarpis]],VeiklosIšlaidos[[#This Row],[Ankstesnis laikotarpis]]<0),-((VeiklosIšlaidos[[#This Row],[Ataskaitinis laikotarpis]]/VeiklosIšlaidos[[#This Row],[Ankstesnis laikotarpis]])-1),(VeiklosIšlaidos[[#This Row],[Ataskaitinis laikotarpis]]/VeiklosIšlaidos[[#This Row],[Ankstesnis laikotarpis]])-1))),\"-\")","v":{"v":0,"d":"0.00%"}},{"$f":"IFERROR(IF(VeiklosIšlaidos[[#This Row],[Biudžetas]]=VeiklosIšlaidos[[#This Row],[Ataskaitinis laikotarpis]],0,IF(VeiklosIšlaidos[[#This Row],[Ataskaitinis laikotarpis]]>VeiklosIšlaidos[[#This Row],[Biudžetas]],ABS((VeiklosIšlaidos[[#This Row],[Ataskaitinis laikotarpis]]/VeiklosIšlaidos[[#This Row],[Biudžetas]])-1),IF(AND(VeiklosIšlaidos[[#This Row],[Ataskaitinis laikotarpis]]<VeiklosIšlaidos[[#This Row],[Biudžetas]],VeiklosIšlaidos[[#This Row],[Biudžetas]]<0),-((VeiklosIšlaidos[[#This Row],[Ataskaitinis laikotarpis]]/VeiklosIšlaidos[[#This Row],[Biudžetas]])-1),(VeiklosIšlaidos[[#This Row],[Ataskaitinis laikotarpis]]/VeiklosIšlaidos[[#This Row],[Biudžetas]])-1))),\"-\")","v":{"v":0,"d":"0.00%"}}]
[null,"Bendrosios ir administravimo","Kitos išlaidos (nurodyti)",{"$nulls":3},{"$f":"IFERROR(IF(Pardavimas_pajamos=0,\"-\",VeiklosIšlaidos[[#This Row],[Ataskaitinis laikotarpis]]/Pardavimas_pajamos),\"-\")","v":"-"},{"$f":"IFERROR(IF(VeiklosIšlaidos[[#This Row],[Ankstesnis laikotarpis]]=VeiklosIšlaidos[[#This Row],[Ataskaitinis laikotarpis]],0,IF(VeiklosIšlaidos[[#This Row],[Ataskaitinis laikotarpis]]>VeiklosIšlaidos[[#This Row],[Ankstesnis laikotarpis]],ABS((VeiklosIšlaidos[[#This Row],[Ataskaitinis laikotarpis]]/VeiklosIšlaidos[[#This Row],[Ankstesnis laikotarpis]])-1),IF(AND(VeiklosIšlaidos[[#This Row],[Ataskaitinis laikotarpis]]<VeiklosIšlaidos[[#This Row],[Ankstesnis laikotarpis]],VeiklosIšlaidos[[#This Row],[Ankstesnis laikotarpis]]<0),-((VeiklosIšlaidos[[#This Row],[Ataskaitinis laikotarpis]]/VeiklosIšlaidos[[#This Row],[Ankstesnis laikotarpis]])-1),(VeiklosIšlaidos[[#This Row],[Ataskaitinis laikotarpis]]/VeiklosIšlaidos[[#This Row],[Ankstesnis laikotarpis]])-1))),\"-\")","v":{"v":0,"d":"0.00%"}},{"$f":"IFERROR(IF(VeiklosIšlaidos[[#This Row],[Biudžetas]]=VeiklosIšlaidos[[#This Row],[Ataskaitinis laikotarpis]],0,IF(VeiklosIšlaidos[[#This Row],[Ataskaitinis laikotarpis]]>VeiklosIšlaidos[[#This Row],[Biudžetas]],ABS((VeiklosIšlaidos[[#This Row],[Ataskaitinis laikotarpis]]/VeiklosIšlaidos[[#This Row],[Biudžetas]])-1),IF(AND(VeiklosIšlaidos[[#This Row],[Ataskaitinis laikotarpis]]<VeiklosIšlaidos[[#This Row],[Biudžetas]],VeiklosIšlaidos[[#This Row],[Biudžetas]]<0),-((VeiklosIšlaidos[[#This Row],[Ataskaitinis laikotarpis]]/VeiklosIšlaidos[[#This Row],[Biudžetas]])-1),(VeiklosIšlaidos[[#This Row],[Ataskaitinis laikotarpis]]/VeiklosIšlaidos[[#This Row],[Biudžetas]])-1))),\"-\")","v":{"v":0,"d":"0.00%"}}]
[null,"Bendrosios ir administravimo","Kitos išlaidos (nurodyti)",{"$nulls":3},{"$f":"IFERROR(IF(Pardavimas_pajamos=0,\"-\",VeiklosIšlaidos[[#This Row],[Ataskaitinis laikotarpis]]/Pardavimas_pajamos),\"-\")","v":"-"},{"$f":"IFERROR(IF(VeiklosIšlaidos[[#This Row],[Ankstesnis laikotarpis]]=VeiklosIšlaidos[[#This Row],[Ataskaitinis laikotarpis]],0,IF(VeiklosIšlaidos[[#This Row],[Ataskaitinis laikotarpis]]>VeiklosIšlaidos[[#This Row],[Ankstesnis laikotarpis]],ABS((VeiklosIšlaidos[[#This Row],[Ataskaitinis laikotarpis]]/VeiklosIšlaidos[[#This Row],[Ankstesnis laikotarpis]])-1),IF(AND(VeiklosIšlaidos[[#This Row],[Ataskaitinis laikotarpis]]<VeiklosIšlaidos[[#This Row],[Ankstesnis laikotarpis]],VeiklosIšlaidos[[#This Row],[Ankstesnis laikotarpis]]<0),-((VeiklosIšlaidos[[#This Row],[Ataskaitinis laikotarpis]]/VeiklosIšlaidos[[#This Row],[Ankstesnis laikotarpis]])-1),(VeiklosIšlaidos[[#This Row],[Ataskaitinis laikotarpis]]/VeiklosIšlaidos[[#This Row],[Ankstesnis laikotarpis]])-1))),\"-\")","v":{"v":0,"d":"0.00%"}},{"$f":"IFERROR(IF(VeiklosIšlaidos[[#This Row],[Biudžetas]]=VeiklosIšlaidos[[#This Row],[Ataskaitinis laikotarpis]],0,IF(VeiklosIšlaidos[[#This Row],[Ataskaitinis laikotarpis]]>VeiklosIšlaidos[[#This Row],[Biudžetas]],ABS((VeiklosIšlaidos[[#This Row],[Ataskaitinis laikotarpis]]/VeiklosIšlaidos[[#This Row],[Biudžetas]])-1),IF(AND(VeiklosIšlaidos[[#This Row],[Ataskaitinis laikotarpis]]<VeiklosIšlaidos[[#This Row],[Biudžetas]],VeiklosIšlaidos[[#This Row],[Biudžetas]]<0),-((VeiklosIšlaidos[[#This Row],[Ataskaitinis laikotarpis]]/VeiklosIšlaidos[[#This Row],[Biudžetas]])-1),(VeiklosIšlaidos[[#This Row],[Ataskaitinis laikotarpis]]/VeiklosIšlaidos[[#This Row],[Biudžetas]])-1))),\"-\")","v":{"v":0,"d":"0.00%"}}]
[null,"Bendrosios veiklos išlaidos",null,{"$f":"SUBTOTAL(109,VeiklosIšlaidos[Ankstesnis laikotarpis])","v":0},{"$f":"SUBTOTAL(109,VeiklosIšlaidos[Biudžetas])","v":0},{"$f":"SUBTOTAL(109,VeiklosIšlaidos[Ataskaitinis laikotarpis])","v":0},{"$f":"SUBTOTAL(109,VeiklosIšlaidos[Ataskaitinio laikotarpio pardavimo procentinė dalis])","v":{"v":0,"d":"0.00%"}},{"$f":"SUBTOTAL(109,VeiklosIšlaidos[[Ankstesnio periodo procentinis pokytis ]])","v":{"v":0,"d":"0.00%"}},{"$f":"SUBTOTAL(109,VeiklosIšlaidos[Biudžeto procentinis pokytis])","v":{"v":0,"d":"0.00%"}}]

{"sheet":"Mokesčiai","index":4,"n_rows":10,"n_cols":9,"rows_kept":10,"merged":[[0,7,2,8]]}
[null,{"$f":"Darbaknygės_pavadinimas","v":"Pelno (nuostolio) ataskaita"}]
[null,{"$f":"Įmonės_pavadinimas","v":"Įmonės pavadinimas"},"Nurodyta 000s"]
[null,"Mokesčiai",{"$f":"IFERROR(Mokesčiai[[#Totals],[Ataskaitinis laikotarpis]],\"-\")","v":0}]
[null,"Tipas","Aprašas","Ankstesnis laikotarpis","Biudžetas","Ataskaitinis laikotarpis","Ataskaitinio laikotarpio pardavimo procentinė dalis","Ankstesnio periodo procentinis pokytis ","Biudžeto procentinis pokytis"]
[null,"Mokesčiai","Pajamų mokesčiai",{"$nulls":3},{"$f":"IFERROR(IF(Pardavimas_pajamos=0,\"-\",Mokesčiai[[#This Row],[Ataskaitinis laikotarpis]]/Pardavimas_pajamos),\"-\")","v":"-"},{"$f":"IFERROR(IF(Mokesčiai[[#This Row],[Ankstesnis laikotarpis]]=Mokesčiai[[#This Row],[Ataskaitinis laikotarpis]],0,IF(Mokesčiai[[#This Row],[Ataskaitinis laikotarpis]]>Mokesčiai[[#This Row],[Ankstesnis laikotarpis]],ABS((Mokesčiai[[#This Row],[Ataskaitinis laikotarpis]]/Mokesčiai[[#This Row],[Ankstesnis laikotarpis]])-1),IF(AND(Mokesčiai[[#This Row],[Ataskaitinis laikotarpis]]<Mokesčiai[[#This Row],[Ankstesnis laikotarpis]],Mokesčiai[[#This Row],[Ankstesnis laikotarpis]]<0),-((Mokesčiai[[#This Row],[Ataskaitinis laikotarpis]]/Mokesčiai[[#This Row],[Ankstesnis laikotarpis]])-1),(Mokesčiai[[#This Row],[Ataskaitinis laikotarpis]]/Mokesčiai[[#This Row],[Ankstesnis laikotarpis]])-1))),\"-\")","v":{"v":0,"d":"0.00%"}},{"$f":"IFERROR(IF(Mokesčiai[[#This Row],[Biudžetas]]=Mokesčiai[[#This Row],[Ataskaitinis laikotarpis]],0,IF(Mokesčiai[[#This Row],[Ataskaitinis laikotarpis]]>Mokesčiai[[#This Row],[Biudžetas]],ABS((Mokesčiai[[#This Row],[Ataskaitinis laikotarpis]]/Mokesčiai[[#This Row],[Biudžetas]])-1),IF(AND(Mokesčiai[[#This Row],[Ataskaitinis laikotarpis]]<Mokesčiai[[#This Row],[Biudžetas]],Mokesčiai[[#This Row],[Biudžetas]]<0),-((Mokesčiai[[#This Row],[Ataskaitinis laikotarpis]]/Mokesčiai[[#This Row],[Biudžetas]])-1),(Mokesčiai[[#This Row],[Ataskaitinis laikotarpis]]/Mokesčiai[[#This Row],[Biudžetas]])-1))),\"-\")","v":{"v":0,"d":"0.00%"}}]
[null,"Mokesčiai","Atlyginimo mokesčiai",{"$nulls":3},{"$f":"IFERROR(IF(Pardavimas_pajamos=0,\"-\",Mokesčiai[[#This Row],[Ataskaitinis laikotarpis]]/Pardavimas_pajamos),\"-\")","v":"-"},{"$f":"IFERROR(IF(Mokesčiai[[#This Row],[Ankstesnis laikotarpis]]=Mokesčiai[[#This Row],[Ataskaitinis laikotarpis]],0,IF(Mokesčiai[[#This Row],[Ataskaitinis laikotarpis]]>Mokesčiai[[#This Row],[Ankstesnis laikotarpis]],ABS((Mokesčiai[[#This Row],[Ataskaitinis laikotarpis]]/Mokesčiai[[#This Row],[Ankstesnis laikotarpis]])-1),IF(AND(Mokesčiai[[#This Row],[Ataskaitinis laikotarpis]]<Mokesčiai[[#This Row],[Ankstesnis laikotarpis]],Mokesčiai[[#This Row],[Ankstesnis laikotarpis]]<0),-((Mokesčiai[[#This Row],[Ataskaitinis laikotarpis]]/Mokesčiai[[#This Row],[Ankstesnis laikotarpis]])-1),(Mokesčiai[[#This Row],[Ataskaitinis laikotarpis]]/Mokesčiai[[#This Row],[Ankstesnis laikotarpis]])-1))),\"-\")","v":{"v":0,"d":"0.00%"}},{"$f":"IFERROR(IF(Mokesčiai[[#This Row],[Biudžetas]]=Mokesčiai[[#This Row],[Ataskaitinis laikotarpis]],0,IF(Mokesčiai[[#This Row],[Ataskaitinis laikotarpis]]>Mokesčiai[[#This Row],[Biudžetas]],ABS((Mokesčiai[[#This Row],[Ataskaitinis laikotarpis]]/Mokesčiai[[#This Row],[Biudžetas]])-1),IF(AND(Mokesčiai[[#This Row],[Ataskaitinis laikotarpis]]<Mokesčiai[[#This Row],[Biudžetas]],Mokesčiai[[#This Row],[Biudžetas]]<0),-((Mokesčiai[[#This Row],[Ataskaitinis laikotarpis]]/Mokesčiai[[#This Row],[Biudžetas]])-1),(Mokesčiai[[#This Row],[Ataskaitinis laikotarpis]]/Mokesčiai[[#This Row],[Biudžetas]])-1))),\"-\")","v":{"v":0,"d":"0.00%"}}]
[null,"Mokesčiai","Nekilnojamojo turto mokesčiai",{"$nulls":3},{"$f":"IFERROR(IF(Pardavimas_pajamos=0,\"-\",Mokesčiai[[#This Row],[Ataskaitinis laikotarpis]]/Pardavimas_pajamos),\"-\")","v":"-"},{"$f":"IFERROR(IF(Mokesčiai[[#This Row],[Ankstesnis laikotarpis]]=Mokesčiai[[#This Row],[Ataskaitinis laikotarpis]],0,IF(Mokesčiai[[#This Row],[Ataskaitinis laikotarpis]]>Mokesčiai[[#This Row],[Ankstesnis laikotarpis]],ABS((Mokesčiai[[#This Row],[Ataskaitinis laikotarpis]]/Mokesčiai[[#This Row],[Ankstesnis laikotarpis]])-1),IF(AND(Mokesčiai[[#This Row],[Ataskaitinis laikotarpis]]<Mokesčiai[[#This Row],[Ankstesnis laikotarpis]],Mokesčiai[[#This Row],[Ankstesnis laikotarpis]]<0),-((Mokesčiai[[#This Row],[Ataskaitinis laikotarpis]]/Mokesčiai[[#This Row],[Ankstesnis laikotarpis]])-1),(Mokesčiai[[#This Row],[Ataskaitinis laikotarpis]]/Mokesčiai[[#This Row],[Ankstesnis laikotarpis]])-1))),\"-\")","v":{"v":0,"d":"0.00%"}},{"$f":"IFERROR(IF(Mokesčiai[[#This Row],[Biudžetas]]=Mokesčiai[[#This Row],[Ataskaitinis laikotarpis]],0,IF(Mokesčiai[[#This Row],[Ataskaitinis laikotarpis]]>Mokesčiai[[#This Row],[Biudžetas]],ABS((Mokesčiai[[#This Row],[Ataskaitinis laikotarpis]]/Mokesčiai[[#This Row],[Biudžetas]])-1),IF(AND(Mokesčiai[[#This Row],[Ataskaitinis laikotarpis]]<Mokesčiai[[#This Row],[Biudžetas]],Mokesčiai[[#This Row],[Biudžetas]]<0),-((Mokesčiai[[#This Row],[Ataskaitinis laikotarpis]]/Mokesčiai[[#This Row],[Biudžetas]])-1),(Mokesčiai[[#This Row],[Ataskaitinis laikotarpis]]/Mokesčiai[[#This Row],[Biudžetas]])-1))),\"-\")","v":{"v":0,"d":"0.00%"}}]
[null,"Mokesčiai","Kiti mokesčiai (nurodyti)",{"$nulls":3},{"$f":"IFERROR(IF(Pardavimas_pajamos=0,\"-\",Mokesčiai[[#This Row],[Ataskaitinis laikotarpis]]/Pardavimas_pajamos),\"-\")","v":"-"},{"$f":"IFERROR(IF(Mokesčiai[[#This Row],[Ankstesnis laikotarpis]]=Mokesčiai[[#This Row],[Ataskaitinis laikotarpis]],0,IF(Mokesčiai[[#This Row],[Ataskaitinis laikotarpis]]>Mokesčiai[[#This Row],[Ankstesnis laikotarpis]],ABS((Mokesčiai[[#This Row],[Ataskaitinis laikotarpis]]/Mokesčiai[[#This Row],[Ankstesnis laikotarpis]])-1),IF(AND(Mokesčiai[[#This Row],[Ataskaitinis laikotarpis]]<Mokesčiai[[#This Row],[Ankstesnis laikotarpis]],Mokesčiai[[#This Row],[Ankstesnis laikotarpis]]<0),-((Mokesčiai[[#This Row],[Ataskaitinis laikotarpis]]/Mokesčiai[[#This Row],[Ankstesnis laikotarpis]])-1),(Mokesčiai[[#This Row],[Ataskaitinis laikotarpis]]/Mokesčiai[[#This Row],[Ankstesnis laikotarpis]])-1))),\"-\")","v":{"v":0,"d":"0.00%"}},{"$f":"IFERROR(IF(Mokesčiai[[#This Row],[Biudžetas]]=Mokesčiai[[#This Row],[Ataskaitinis laikotarpis]],0,IF(Mokesčiai[[#This Row],[Ataskaitinis laikotarpis]]>Mokesčiai[[#This Row],[Biudžetas]],ABS((Mokesčiai[[#This Row],[Ataskaitinis laikotarpis]]/Mokesčiai[[#This Row],[Biudžetas]])-1),IF(AND(Mokesčiai[[#This Row],[Ataskaitinis laikotarpis]]<Mokesčiai[[#This Row],[Biudžetas]],Mokesčiai[[#This Row],[Biudžetas]]<0),-((Mokesčiai[[#This Row],[Ataskaitinis laikotarpis]]/Mokesčiai[[#This Row],[Biudžetas]])-1),(Mokesčiai[[#This Row],[Ataskaitinis laikotarpis]]/Mokesčiai[[#This Row],[Biudžetas]])-1))),\"-\")","v":{"v":0,"d":"0.00%"}}]
[null,"Mokesčiai","Kiti mokesčiai (nurodyti)",{"$nulls":3},{"$f":"IFERROR(IF(Pardavimas_pajamos=0,\"-\",Mokesčiai[[#This Row],[Ataskaitinis laikotarpis]]/Pardavimas_pajamos),\"-\")","v":"-"},{"$f":"IFERROR(IF(Mokesčiai[[#This Row],[Ankstesnis laikotarpis]]=Mokesčiai[[#This Row],[Ataskaitinis laikotarpis]],0,IF(Mokesčiai[[#This Row],[Ataskaitinis laikotarpis]]>Mokesčiai[[#This Row],[Ankstesnis laikotarpis]],ABS((Mokesčiai[[#This Row],[Ataskaitinis laikotarpis]]/Mokesčiai[[#This Row],[Ankstesnis laikotarpis]])-1),IF(AND(Mokesčiai[[#This Row],[Ataskaitinis laikotarpis]]<Mokesčiai[[#This Row],[Ankstesnis laikotarpis]],Mokesčiai[[#This Row],[Ankstesnis laikotarpis]]<0),-((Mokesčiai[[#This Row],[Ataskaitinis laikotarpis]]/Mokesčiai[[#This Row],[Ankstesnis laikotarpis]])-1),(Mokesčiai[[#This Row],[Ataskaitinis laikotarpis]]/Mokesčiai[[#This Row],[Ankstesnis laikotarpis]])-1))),\"-\")","v":{"v":0,"d":"0.00%"}},{"$f":"IFERROR(IF(Mokesčiai[[#This Row],[Biudžetas]]=Mokesčiai[[#This Row],[Ataskaitinis laikotarpis]],0,IF(Mokesčiai[[#This Row],[Ataskaitinis laikotarpis]]>Mokesčiai[[#This Row],[Biudžetas]],ABS((Mokesčiai[[#This Row],[Ataskaitinis laikotarpis]]/Mokesčiai[[#This Row],[Biudžetas]])-1),IF(AND(Mokesčiai[[#This Row],[Ataskaitinis laikotarpis]]<Mokesčiai[[#This Row],[Biudžetas]],Mokesčiai[[#This Row],[Biudžetas]]<0),-((Mokesčiai[[#This Row],[Ataskaitinis laikotarpis]]/Mokesčiai[[#This Row],[Biudžetas]])-1),(Mokesčiai[[#This Row],[Ataskaitinis laikotarpis]]/Mokesčiai[[#This Row],[Biudžetas]])-1))),\"-\")","v":{"v":0,"d":"0.00%"}}]
[null,"Bendra mokesčių suma",null,{"$f":"SUBTOTAL(109,Mokesčiai[Ankstesnis laikotarpis])","v":0},{"$f":"SUBTOTAL(109,Mokesčiai[Biudžetas])","v":0},{"$f":"SUBTOTAL(109,Mokesčiai[Ataskaitinis laikotarpis])","v":0},{"$f":"IFERROR(SUBTOTAL(109,Mokesčiai[Ataskaitinio laikotarpio pardavimo procentinė dalis]),\"-\")","v":{"v":0,"d":"0.00%"}},{"$f":"SUBTOTAL(109,Mokesčiai[[Ankstesnio periodo procentinis pokytis ]])","v":{"v":0,"d":"0.00%"}},{"$f":"SUBTOTAL(109,Mokesčiai[Biudžeto procentinis pokytis])","v":{"v":0,"d":"0.00%"}}]

{"sheet":"Kategorijos","index":5,"n_rows":8,"n_cols":2,"rows_kept":8}
[null,"Kategorijos"]
[null,"Pajamos iš pardavimo"]
[null,"Pardavimo išlaidos"]
[null,"Pajamos"]
[null,"Pardavimas ir rinkodara"]
[null,"Tyrimai ir plėtra"]
[null,"Bendrosios ir administravimo"]
[null,"Mokesčiai"]